Cogmind - Beta 16 @@@ ROGUE MODE // 2025.11.14 @ 13:00:18 Player: Dosh Result: Escaped! Performance ------------- Evolutions (9) 4500 Regions Visited (28) 5600 Robots Destroyed (398) 1990 Value Destroyed (27682) 27682 Prototype IDs (63) 1260 Alien Tech Used (1) 200 Bonus (19927) 19927 TOTAL SCORE: 61159 Bonus ------- High Alert Combat Kills 1495 Follower Combat Kills 7447 Entered Garrisons 2200 Used RIF Installer 5500 Aligned with FarCom 300 Scanned by Researcher 500 Win 3000 Friendly Fire -515 Cogmind --------- Core Integrity 789/1600 Matter 281/300 Energy 63/100 System Corruption 11% Temperature Cool (0) Movement Core (250) Ox4 Location To Epsilon Eridani Parts ------- > --- POWER (4) -------- (None) > --- PROPULSION (2) --- (None) > --- UTILITY (16) ----- Spectral Analyzer Experimental Core Analyzer Relay Coupler [NC] (18) Relay Coupler [Swarmer] (48) Relay Coupler [Grunt] (6) Relay Coupler [Sentry] (38) Relay Coupler [Sentry] (8) Relay Coupler [Heavy] (1) Relay Coupler [Behemoth] (20) Relay Coupler [Proto] (15) > --- WEAPON (3) ------- Heavy Neutron Cannon > --- INVENTORY (5) ---- (None) Peak State ------------ > --- POWER ------------ Quantum Reactor Quantum Reactor Quantum Reactor Reinforced Quantum Reactor > --- PROPULSION ------- Centrium Wheel Centrium Wheel > --- UTILITY ---------- Advanced Cryofiber Web Advanced Heat Sink Advanced Heat Sink Advanced Coolant Injector Cargo Storage Unit Experimental Core Analyzer Quantum Capacitor Centrium Medium Armor Plating Improved Remote Force Field Relay Coupler [NC] Relay Coupler [Grunt] Relay Coupler [Sentry] > --- WEAPON ----------- Gamma Rifle Enhanced Nova Cannon Advanced Remote Datajack > --- INVENTORY -------- Particle Reactor Quantum Reactor Armored Huge Wheel Advanced Heat Sink Advanced Cooling System Improved Utility Shielding Improved Medium Armor Plating Improved Heavy Armor Plating Graphene Brace Improved Force Field Relay Coupler [NC] Relay Coupler [NC] Relay Coupler [Swarmer] Relay Coupler [Grunt] Relay Coupler [Grunt] Relay Coupler [Sentry] Relay Coupler [Sentry] Relay Coupler [Hunter] Relay Coupler [Heavy] Relay Coupler [Behemoth] Relay Coupler [Behemoth] Relay Coupler [Proto] Relay Coupler [Proto] Improved System Restoration Module High-powered Transdimensional Reconstructor Subatomic Replicator Matter Neutralizer Missile Launcher [Rating: 166] Favorites ----------- Power Quantum Reactor Engine Improved Deuterium Engine Reactor Quantum Reactor Propulsion Armored Huge Wheel Treads Light Treads Wheel Armored Huge Wheel Utility Relay Coupler [Grunt] Device Quantum Capacitor Storage Huge Storage Unit Processor Experimental Core Analyzer Hackware Relay Coupler [Grunt] Protection Hardened Heavy Armor Plating Weapon Advanced Remote Datajack Energy Gun Gatling Laser Energy Cannon Enhanced Nova Cannon Ballistic Gun Heavy Assault Rifle Launcher Grenade Launcher Special Weapon Advanced Remote Datajack Impact Weapon Power Maul Special Melee Weapon Datajack Build | -11 -10 -10 -10 -9 -8 -8 -8 -8 -7 -7 -6 -6 -6 -6 -5 -5 -4 -4 -4 -4 -4 -4 -3 -3 -3 -2 -2 -1 ------- Run | Yrd Mat Min Exi Min Mat Gar Mat Gar Fac Gar Fac Gar Fac Gar Fac Gar Fac Gar Fac Gar Fac Gar Res Qua Gar Res Gar Acc Slots Evolved 18 | . . . . . 4 . . . 2 . 2 . . . 2 . 2 . . . . . 2 . . 2 . 2 Power 3 | . . . . . . . . . . . 1 . . . . . . . . . . . 2 . . . . . Propulsion . | . . . . . . . . . . . . . . . . . . . . . . . . . . . . . Utility 14 | . . . . . 3 . . . 2 . 1 . . . 2 . 2 . . . . . . . . 2 . 2 Weapon 1 | . . . . . 1 . . . . . . . . . . . . . . . . . . . . . . . Parts Attached 283 | 6 6 2 1 3 25 4 6 3 6 7 9 13 1 11 7 12 4 8 7 11 8 16 10 6 19 30 17 25 Power 34 | 1 1 . . 1 3 . 1 . . 1 2 1 . 2 . 4 . . . 1 . 1 1 1 4 2 4 3 Engine 10 | 1 1 . . 1 3 . 1 . . 1 2 . . . . . . . . . . . . . . . . . Core . | . . . . . . . . . . . . . . . . . . . . . . . . . . . . . Reactor 24 | . . . . . . . . . . . . 1 . 2 . 4 . . . 1 . 1 1 1 4 2 4 3 Propulsion 19 | 2 . 1 . 1 5 1 . . 1 . . . . . . 1 . . 3 . . . . . . 1 1 2 Treads 10 | 2 . 1 . 1 5 . . . . . . . . . . . . . . . . . . . . . 1 . Leg . | . . . . . . . . . . . . . . . . . . . . . . . . . . . . . Wheel 9 | . . . . . . 1 . . 1 . . . . . . 1 . . 3 . . . . . . 1 . 2 Hover . | . . . . . . . . . . . . . . . . . . . . . . . . . . . . . Flight . | . . . . . . . . . . . . . . . . . . . . . . . . . . . . . Utility 172 | 1 3 . 1 1 7 1 2 3 3 2 6 9 1 9 6 5 4 8 3 9 6 11 8 5 10 21 9 18 Device 36 | . 1 . . . . . . 1 1 1 2 2 . 2 2 . . . . 1 3 2 3 . 4 7 1 3 Storage 6 | 1 1 . 1 . . 1 . . . . . . . . 1 . . . . . . 1 . . . . . . Processor 5 | . . . . . 1 . . . . . . . . . . . . . . . . . . . . 2 . 2 Hackware 101 | . . . . . 1 . 2 1 1 1 4 7 1 7 3 4 4 5 3 7 3 7 5 4 6 9 6 10 Protection 24 | . 1 . . 1 5 . . 1 1 . . . . . . 1 . 3 . 1 . 1 . 1 . 3 2 3 Artifact . | . . . . . . . . . . . . . . . . . . . . . . . . . . . . . Weapon 58 | 2 2 1 . . 10 2 3 . 2 4 1 3 . . 1 2 . . 1 1 2 4 1 . 5 6 3 2 Energy Gun 9 | 1 1 . . . 1 . . . . 4 . . . . . . . . . . . . . . 2 . . . Energy Cannon 21 | . . . . . 1 . . . . . 1 2 . . 1 2 . . . 1 2 3 . . 1 4 2 1 Ballistic Gun 12 | 1 . 1 . . 8 . 2 . . . . . . . . . . . . . . . . . . . . . Ballistic Cannon . | . . . . . . . . . . . . . . . . . . . . . . . . . . . . . Launcher 3 | . 1 . . . . 1 . . 1 . . . . . . . . . . . . . . . . . . . Special Weapon 11 | . . . . . . . . . 1 . . 1 . . . . . . 1 . . 1 1 . 2 2 1 1 Impact Weapon 1 | . . . . . . 1 . . . . . . . . . . . . . . . . . . . . . . Slashing Weapon . | . . . . . . . . . . . . . . . . . . . . . . . . . . . . . Piercing Weapon . | . . . . . . . . . . . . . . . . . . . . . . . . . . . . . Special Melee Weapon 1 | . . . . . . . 1 . . . . . . . . . . . . . . . . . . . . . Unidentified Prototypes 9 | . . . . . 3 . . . 1 . . . . . 2 . . . . . 1 . 1 1 . . . . Corrupted Parts 2 | . . . . . . . . . . . . . . . . . . . . . . . . . 2 . . . System Corruption 11 | . . . . . . . . . . . . . . . . . . . . . . . . . 11 . . . Parts Lost 83 | . . 1 . 3 6 . 1 1 . 1 1 1 . 1 . 1 . 4 . 1 2 4 1 . 5 14 6 29 Power 12 | . . . . 1 . . . . . . . . . . . . . . . . 1 . . . . 2 2 6 Propulsion 11 | . . . . 1 2 . . . . . . . . 1 . . . . . . . . . . 1 1 1 4 Utility 43 | . . . . 1 3 . 1 1 . 1 1 1 . . . 1 . 3 . 1 1 2 1 . 2 7 3 13 Weapon 17 | . . 1 . . 1 . . . . . . . . . . . . 1 . . . 2 . . 2 4 . 6 Highest Loss Streak 18 | . . 1 . 2 1 . 1 1 . 1 1 1 . 1 . 1 . 2 . 1 2 3 1 . 2 5 2 18 To Critical Strikes 1 | . . . . . . . . . . . . . . . . . . . . . . . . . . 1 . . Average Backups 21 | . 4 13 15 15 14 17 18 18 19 18 19 20 21 20 20 22 20 22 23 23 23 24 26 28 28 26 25 23 Power 1 | . . 1 1 . 1 1 1 1 1 1 . 1 2 1 2 2 2 2 2 2 1 2 1 1 1 3 1 1 Propulsion 1 | . . 1 3 2 3 4 3 1 . 1 1 1 1 . . 1 1 1 1 2 2 2 2 2 1 1 1 2 Utility 12 | . 2 4 4 3 2 6 6 6 8 9 11 11 13 13 12 13 12 14 16 15 15 17 19 19 21 18 15 16 Weapon 4 | . 1 5 6 7 5 4 6 8 8 6 5 4 5 4 5 5 5 4 3 3 3 2 3 3 2 1 4 2 Tool/Special . | . . . . . . . . . . . . . . . . . . . . . . . . . . . . . Unused Backups 45 | . 1 . . 1 3 2 1 1 . 1 1 3 . . . 3 . . . 1 . 4 . 2 1 2 7 11 Power 2 | . . . . . . . . . . . . . . . . . . . . . . 1 . . . 1 . . Propulsion 8 | . . . . . 1 2 1 1 . . . . . . . 2 . . . . . . . . . . . 1 Utility 23 | . 1 . . 1 . . . . . . . 3 . . . 1 . . . 1 . 3 . 1 1 . 3 8 Weapon 9 | . . . . . 2 . . . . 1 1 . . . . . . . . . . . . . . 1 3 1 Tool/Special 3 | . . . . . . . . . . . . . . . . . . . . . . . . 1 . . 1 1 Average Slot Usage (%) 85 | . 90 99 100 100 98 78 80 80 79 83 82 85 86 85 82 81 83 80 82 81 81 80 79 78 86 86 89 88 Engine 4 | . 14 14 14 14 8 9 9 9 6 7 12 6 6 1 . . . . . . . . . . . . . . Reactor 8 | . . . . . . . . . . . . 5 6 10 11 11 10 10 10 10 10 10 18 19 19 16 16 12 Treads 4 | . 28 28 28 28 17 13 . . . . . . . . . . . . . . . . . . . . . . Wheel 4 | . . . . . . 2 9 9 7 7 6 6 6 5 5 5 5 5 5 5 4 5 4 4 7 7 3 6 Device 14 | . 4 . . . 8 9 6 5 7 7 9 10 18 11 17 21 19 20 20 21 21 22 18 18 21 21 22 17 Storage 6 | . 14 14 14 14 9 9 9 9 7 7 6 6 6 6 5 5 5 5 5 5 5 5 4 4 4 4 4 3 Processor 1 | . . . . . 8 . . . . . . . . . . . . . . . . . . . . 4 4 5 Hackware 13 | . . . . . . 9 11 12 18 22 20 21 14 20 16 11 21 18 15 15 15 15 14 14 15 13 12 22 Protection 7 | . . 14 14 14 17 9 9 9 7 7 6 6 6 6 5 5 5 6 9 8 7 5 4 3 3 4 10 8 Energy Gun 4 | . 5 14 14 14 . 9 . . . 16 14 12 6 13 11 . . . . . . . . . 2 2 . . Energy Cannon 4 | . . . . . . . . . . . . 4 6 3 . 10 10 10 9 8 10 9 9 7 5 5 8 7 Ballistic Gun 5 | . 14 13 14 14 26 4 23 23 20 . . . . . . . . . . . . . . . . . . . Special Weapon 2 | . . . . . . . . . 1 1 2 1 6 2 4 4 5 2 4 5 5 5 4 4 3 3 3 3 Peak Build Rating 166 | 6 9 10 14 14 46 52 52 48 53 54 63 78 78 80 95 108 116 116 116 113 121 122 143 143 152 166 161 166 Average Rating 90 | 4 7 9 12 13 30 46 45 47 52 52 59 72 77 75 91 101 114 108 107 108 116 117 137 138 146 159 153 146 On Entrance 77 | . 6 9 10 14 13 45 52 45 48 53 54 63 78 78 74 93 108 115 103 97 112 120 122 141 133 149 156 153 Avg Prop Armor Cover (%) 39 | . . . . . . . . . . . . . . . . . . . . . . . . . . . . 39 Naked Turns . | . . . . . . . . . . . . . . . . . . . . . . . . . . . . . Heaviest Build 304 | 12 34 34 54 54 84 118 120 121 120 123 145 164 165 170 165 197 187 193 194 196 201 268 278 278 290 304 296 285 Greatest Support 40 | 40 40 40 40 40 40 40 28 28 28 28 28 28 28 28 28 28 28 28 28 28 28 28 28 28 32 32 28 26 Greatest Overweight (x) 17 | . . . 1 1 2 4 4 4 4 4 5 5 5 6 5 7 6 6 12 6 7 9 9 9 10 10 17 17 Average Overweight (x) 5 | . . . . 1 1 2 4 4 3 4 4 5 5 5 5 6 6 5 6 6 6 7 9 8 8 8 9 7 Largest Inventory Capacity 30 | 8 15 15 20 20 20 25 25 25 25 25 25 25 25 25 25 25 25 25 25 25 25 30 30 30 30 30 30 30 Average Capacity 25 | 6 10 15 17 20 20 24 25 25 25 25 25 25 25 25 25 25 25 25 25 25 25 27 30 30 30 30 30 27 Most Carried 30 | . 12 15 20 20 20 25 25 25 25 24 25 25 25 25 24 25 24 25 25 25 25 30 29 30 30 30 30 30 Average Carried 23 | . 4 13 17 19 18 22 24 24 24 23 23 24 24 23 21 23 21 23 24 24 24 25 26 28 28 27 27 25 Final Capacity 30 | 8 15 15 20 20 20 25 25 25 25 25 25 25 25 25 25 25 25 25 25 25 25 30 30 30 30 30 30 5 Final Carried 30 | . 11 15 20 17 20 25 25 25 24 24 22 25 24 25 24 25 21 25 24 25 21 30 29 30 30 30 30 . Class Distribution -------------------- 55% | Botlord-Tank 12% | Mutant 6% | Botlord-Gunner 6% | Scavenger-Tank 5% | Botlord-Mutant 3% | Bothacker-Tank 3% | Scavenger-Skirmisher Dominant Class ---------------- Mutant | -10/Materials Mutant | -10/Mines Mutant | -10/Exiles Mutant | -9/Mines Scavenger-Tank | -8/Materials Mutant | -8/Garrison Skirmisher | -8/Materials Scavenger-Skirmisher | -8/Garrison Bothacker-Tank | -7/Factory Bothacker-Tank | -7/Garrison Botlord-Tank | -6/Factory Botlord-Tank | -6/Garrison Botlord-Tank | -6/Factory Botlord-Tank | -6/Garrison Botlord-Tank | -5/Factory Botlord-Tank | -5/Garrison Botlord-Tank | -4/Factory Botlord-Tank | -4/Garrison Botlord-Tank | -4/Factory Botlord-Tank | -4/Garrison Botlord-Tank | -4/Factory Botlord-Tank | -4/Garrison Botlord-Tank | -3/Research Botlord-Tank | -3/Quarantine Botlord-Tank | -3/Garrison Botlord-Gunner | -2/Research Botlord-Tank | -2/Garrison Botlord-Tank | -1/Access Resources | -11 -10 -10 -10 -9 -8 -8 -8 -8 -7 -7 -6 -6 -6 -6 -5 -5 -4 -4 -4 -4 -4 -4 -3 -3 -3 -2 -2 -1 ----------- Run | Yrd Mat Min Exi Min Mat Gar Mat Gar Fac Gar Fac Gar Fac Gar Fac Gar Fac Gar Fac Gar Fac Gar Res Qua Gar Res Gar Acc Matter Collected 13799 | 163 236 52 . 122 1288 327 537 745 517 316 206 876 100 790 247 747 90 546 374 658 365 816 368 281 627 1084 425 896 Remotely . | . . . . . . . . . . . . . . . . . . . . . . . . . . . . . Salvage Created 22046 | . 330 143 . 537 2268 895 792 931 627 265 346 526 . 666 209 919 193 893 197 433 237 696 929 919 1517 3529 1627 1422 Parts 1048 | . 27 10 . 18 113 41 55 59 32 8 24 20 . 29 8 38 15 30 12 29 15 22 46 64 55 163 64 51 Haulers Intercepted 9 | . 2 . . . 5 . 1 . . . . . . . . . . . . . . . . . . 1 . . Recyclers Shooed 13 | . . . . . 2 . 1 . 1 . . . . . 1 . . . . . . . . . . 8 . . Parts Field Recycled . | . . . . . . . . . . . . . . . . . . . . . . . . . . . . . Retrieved Matter . | . . . . . . . . . . . . . . . . . . . . . . . . . . . . . Parts Self-Destructed . | . . . . . . . . . . . . . . . . . . . . . . . . . . . . . Prevented . | . . . . . . . . . . . . . . . . . . . . . . . . . . . . . Parts Restored . | . . . . . . . . . . . . . . . . . . . . . . . . . . . . . Kills | -11 -10 -10 -10 -9 -8 -8 -8 -8 -7 -7 -6 -6 -6 -6 -5 -5 -4 -4 -4 -4 -4 -4 -3 -3 -3 -2 -2 -1 ------- Run | Yrd Mat Min Exi Min Mat Gar Mat Gar Fac Gar Fac Gar Fac Gar Fac Gar Fac Gar Fac Gar Fac Gar Res Qua Gar Res Gar Acc Combat Hostiles Destroyed 334 | . 9 3 . 12 36 17 15 21 6 7 7 14 . 22 1 13 3 12 6 10 4 8 12 12 17 38 18 11 Guns 153 | . 7 3 . 11 36 13 10 21 6 5 6 12 . 17 1 . . . . . . . . . . 5 . . Cannons 108 | . . . . . . . . . . . . 2 . . . 8 3 11 . 5 4 5 9 6 13 18 15 9 AOE 28 | . 2 . . . . 2 5 . . 2 . . . 4 . . . . 6 4 . 3 . . . . . . Classes Destroyed 22 | . 4 1 . 1 5 2 . . . 1 . 1 . 1 . . . . . 1 . . . 2 1 1 . 1 Worker 15 | . 1 . . . 4 . 1 . 1 . . . . . 2 . . . . . . . 1 . . 2 . 3 Builder 14 | . . . . . 2 . 3 . 1 . 1 . . . . . 1 . . . . . . 1 . 4 . 1 Hauler 9 | . 2 . . . 5 . 1 . . . . . . . . . . . . . . . . . . 1 . . Recycler 12 | . . . . 1 1 . 1 . 3 . . . . . 1 . . . . . . . . 1 . 2 . 2 Mechanic 1 | . . . . . . . . . . . . . . . . . . . . . . . . . . . . 1 Operator 1 | . . . . . 1 . . . . . . . . . . . . . . . . . . . . . . . Watcher 6 | . . . . . 3 . 1 . 1 . 1 . . . . . . . . . . . . . . . . . Swarmer 52 | . 5 . . . 3 4 5 3 . 3 . 5 . 9 . 4 . 1 2 4 . . . 1 . . 2 1 Cutter 8 | . . . . . . . . . . . . . . 4 . . . . . . . . . . 4 . . . Grunt 85 | . 4 2 . 12 21 8 1 6 . . 1 5 . 2 1 1 . 2 . 1 . 1 1 . 2 9 4 1 Brawler 10 | . . . . . . 2 1 1 . . . 2 . . . 3 . . . . . . . . . 1 . . Duelist 14 | . . . . . 1 . 1 2 . . 1 1 . 3 . 1 . . . 1 . 1 . . . 1 1 . Sentry 47 | . . 1 . . 8 2 5 4 3 2 1 . . 2 . . . 6 . . . 1 3 . 6 1 2 . Demolisher 1 | . . . . . . . . . . . . . . . . . . . . . . . . . 1 . . . Specialist 9 | . . . . . . . . . . 1 . . . 1 . 2 . . . . 1 . . . . 4 . . Hunter 33 | . . . . . 3 . 2 . . . . . . . . . . 3 2 . 1 . 3 . 2 8 2 7 Programmer 60 | . . . . . . 1 . 5 3 1 4 . . . . 1 3 . 2 3 2 5 5 3 3 10 7 2 Heavy 2 | . . . . . . . . . . . . . . . . . . . . . . . . . . 1 . 1 Q-Series 3 | . . . . . . . . . . . . . . . . . . . . . . . . 1 . 2 . . Behemoth 7 | . . . . . . . . . . . . 1 . 1 . 1 . 1 . . . . . . . 2 1 . Quarantine Guard 6 | . . . . . . . . . . . . . . . . . . . . . . . . 6 . . . . Executioner 1 | . . . . . . . . . . . . . . . . . . . . 1 . . . . . . . . Alpha 7 1 | . . . . . . . . . . . . . . . . . . . . . . . . 1 . . . . Infiltrator 1 | . . . . . . . . . . . . . . . . . . . 1 . . . . . . . . . Best Kill Streak 6 | . 5 2 . 3 5 5 6 6 2 2 4 3 . 6 2 3 3 3 6 4 2 3 2 3 5 6 6 4 Combat Bots Only 6 | . 5 2 . 3 3 5 3 6 2 2 3 3 . 6 1 3 2 3 6 4 2 3 2 3 5 5 6 2 Max Kills in Single Turn 5 | . 2 1 . 1 3 2 3 1 1 2 1 2 . 2 1 1 1 1 5 2 1 2 1 1 1 1 1 2 Gunslinging 1 | . 1 . . . 1 . . . . . . . . 1 . . . . . . . . . . . . . . Exploded 4 | . 2 . . . . 2 3 . . 2 . . . 2 . . . . 4 2 . 2 . . . . . . Melee . | . . . . . . . . . . . . . . . . . . . . . . . . . . . . . Uniques/NPCs Destroyed . | . . . . . . . . . . . . . . . . . . . . . . . . . . . . . Combat | -11 -10 -10 -10 -9 -8 -8 -8 -8 -7 -7 -6 -6 -6 -6 -5 -5 -4 -4 -4 -4 -4 -4 -3 -3 -3 -2 -2 -1 -------- Run | Yrd Mat Min Exi Min Mat Gar Mat Gar Fac Gar Fac Gar Fac Gar Fac Gar Fac Gar Fac Gar Fac Gar Res Qua Gar Res Gar Acc Hostile Shots Fired 2413 | . 27 19 . 48 155 25 40 65 106 74 58 99 4 120 9 80 7 141 3 53 23 161 42 66 110 481 94 303 Missed 781 | . 4 5 . 5 46 8 11 21 47 25 27 29 . 39 3 25 2 40 2 14 9 49 11 17 40 171 24 107 Hits 1632 | . 23 14 . 43 109 17 29 44 59 49 31 70 4 81 6 55 5 101 1 39 14 112 31 49 70 310 70 196 Melee 19 | . . . . . . . . . . . . 3 . 6 . 2 . . . . . 1 . . 6 . 1 . Projectile 1613 | . 23 14 . 43 109 17 29 44 59 49 31 67 4 75 6 53 5 101 1 39 14 111 31 49 64 310 69 196 AOE 39 | . . . . . . . . . . . . . . 1 . . . . . . . . 1 1 . . . 36 Critical Strikes 76 | . 1 . . . 8 1 1 3 . . 1 1 . 3 . 2 . 2 . 2 5 10 1 6 6 14 4 5 Actively Blocked 13 | . . . . . . . . . . . . . . . . . . . . . 2 2 . . . 4 4 1 Part Disruptions 5 | . . . . . . . . . . . . . . . . . . . . . . . . 1 . 3 1 . Damage Taken 24198 | . 349 186 . 502 1545 263 418 591 525 611 350 696 43 704 46 633 72 1126 29 487 334 1394 660 1379 1025 4133 1073 5024 Core 2719 | . 32 18 . 64 86 46 20 25 38 165 5 60 . 39 . 33 . 74 . 26 . 146 23 393 108 400 107 811 Absorbed by Shields 8950 | . . . . . . . . 33 . . 40 602 46 473 48 435 76 921 30 479 262 900 464 270 593 2738 540 . Redirected to Shielding 393 | . . . . . . . . . . . . . . . . . . . . . . . . . . 83 40 270 Ignored by Resistances 100 | . . . . . 90 . . . . . . . . . . . . . . . . . . . . . 10 . Regen/Repaired (Parts) 3969 | . . . . . . . . . 766 . 242 48 . 164 . . 70 . 199 . 118 . 378 444 . 999 . 541 Core Remaining (%) 71 | 100 . . . 54 . . . 67 . 71 . . . 87 . 96 . . . . . 78 . . 59 . 56 49 Volleys Fired 1791 | . 29 9 . 41 113 52 34 56 43 15 36 69 12 87 22 115 22 88 23 64 32 121 71 76 109 287 65 100 Largest 3 | . 2 2 . 2 3 1 3 3 3 3 3 3 1 3 2 2 1 1 1 1 1 1 2 1 1 2 3 3 Hottest 360 | . 70 70 . 70 79 36 81 81 75 240 240 250 90 250 160 166 120 120 120 120 120 120 214 120 120 240 360 360 Shots Fired 2710 | . 52 18 . 82 339 100 99 160 119 38 64 125 14 145 24 117 24 87 23 65 32 125 77 76 108 318 123 156 Gun 1294 | . 51 18 . 82 339 99 97 160 114 34 43 75 . 80 9 . . . . . . . . . 9 84 . . Cannon 1011 | . . . . . . . . . . . 3 38 7 32 . 100 19 64 5 38 18 79 59 61 70 192 112 114 Launcher 20 | . 1 . . . . 1 2 . . 1 . . . 4 . . . . 2 2 . 4 . . . 3 . . Special 385 | . . . . . . . . . 5 3 18 12 7 29 15 17 5 23 16 25 14 42 18 15 29 39 11 42 Kinetic 836 | . 29 9 . 41 338 51 94 160 114 . . . . . . . . . . . . . . . . . . . Thermal 1086 | . 11 9 . 41 1 48 3 . . 34 46 107 7 112 9 69 18 38 5 30 10 64 36 28 38 162 98 62 Explosive 20 | . 1 . . . . 1 2 . . 1 . . . 4 . . . . 2 2 . 4 . . . 3 . . Electromagnetic 383 | . 11 . . . . . . . . . . 6 . . . 31 1 26 . 8 8 15 23 33 41 114 14 52 Robot Hit Streak 29 | . 7 9 . 12 27 29 7 13 14 25 20 11 8 13 7 14 2 13 10 4 7 16 18 13 10 20 25 10 Robot Miss Streak 9 | . 4 1 . 2 3 2 3 4 3 4 8 8 1 7 4 3 3 5 1 2 9 6 4 4 3 9 4 5 Penetration Max 1 | . . . . . 1 1 1 1 . . . . . . . . . . . . . . . . . . . . Secondary Targets 17 | . 3 1 . . 2 . . 3 1 . 1 2 . 4 . . . . . . . . . . . . . . Max Gunslinging Chain 1 | . 1 1 . . 1 . . 1 1 . 1 1 . 1 . . . . . . . . . . . . . . Capacitor 706 | . . . . . . . . . . . . . . . 5 98 19 64 4 38 18 79 55 61 79 186 . . Autonomous 53 | . . . . . 1 48 4 . . . . . . . . . . . . . . . . . . . . . Shots Hit Robots 1723 | . 31 15 . 62 236 90 59 83 77 25 45 77 7 88 18 69 8 51 16 30 22 81 54 50 74 199 68 88 Core Hits 743 | . 20 7 . 23 98 38 34 37 22 20 26 55 . 57 12 18 4 17 17 15 6 28 13 18 26 78 28 26 Critical Kills 11 | . . . . . 2 . . . . . . . . . . 1 . . . . . 1 . 1 2 2 2 . Critical Parts Destroyed 8 | . . . . 2 . 3 1 1 1 . . . . . . . . . . . . . . . . . . . Critical Strikes 31 | . 2 1 . 5 2 3 1 1 1 . . . . . . 3 . . . . . 1 2 1 2 3 3 . Burn 6 | . 2 1 . 3 . . . . . . . . . . . . . . . . . . . . . . . . Meltdown 9 | . . . . . . . . . . . . . . . . 1 . . . . . 1 . 1 2 2 2 . Destroy 8 | . . . . 2 2 2 . 1 1 . . . . . . . . . . . . . . . . . . . Corrupt 6 | . . . . . . . . . . . . . . . . 2 . . . . . . 2 . . 1 1 . Smash 2 | . . . . . . 1 1 . . . . . . . . . . . . . . . . . . . . . Melee Attacks 38 | . . . . . . 6 9 14 . 4 5 . . . . . . . . . . . . . . . . . Impact 36 | . . . . . . 6 7 14 . 4 5 . . . . . . . . . . . . . . . . . Slashing . | . . . . . . . . . . . . . . . . . . . . . . . . . . . . . Piercing . | . . . . . . . . . . . . . . . . . . . . . . . . . . . . . Sneak Attacks 4 | . . . . . . . 3 . . . 1 . . . . . . . . . . . . . . . . . Combat Hostiles . | . . . . . . . . . . . . . . . . . . . . . . . . . . . . . Follow-up Attacks . | . . . . . . . . . . . . . . . . . . . . . . . . . . . . . Damage Inflicted 45859 | . 476 220 . 842 3935 2074 1386 1925 1357 826 939 1581 31 1988 211 2150 347 1603 1121 1211 455 2395 1946 1697 2278 7306 2958 2601 Guns 17682 | . 409 204 . 805 3894 1837 992 1917 1357 603 857 1423 . 1448 211 . . . . . . . . . 172 1553 . . Cannons 23935 | . . . . . . . . . . . . 158 31 189 . 2136 347 1603 . 754 455 1775 1876 1697 2106 5249 2958 2601 Explosions 3677 | . 57 . . . . 133 278 . . 223 . . . 351 . . . . 1121 457 . 553 . . . 504 . . Melee 292 | . . . . . . 104 106 . . . 82 . . . . . . . . . . . . . . . . . Ramming 273 | . 10 16 . 37 41 . 10 8 . . . . . . . 14 . . . . . 67 70 . . . . . Kinetic 9440 | . 246 114 . 417 3867 583 939 1917 1357 . . . . . . . . . . . . . . . . . . . Thermal 24943 | . 74 90 . 388 27 1254 53 . . 603 857 1581 31 1637 211 1415 347 1064 653 748 285 1675 1353 883 1280 4440 2697 1297 Explosive 2714 | . 57 . . . . 133 278 . . 223 . . . 351 . . . . 355 335 . 553 . . . 429 . . Electromagnetic 8197 | . 89 . . . . . . . . . . . . . . 721 . 539 113 128 170 100 523 814 998 2437 261 1304 Impact 292 | . . . . . . 104 106 . . . 82 . . . . . . . . . . . . . . . . . Slashing . | . . . . . . . . . . . . . . . . . . . . . . . . . . . . . Piercing . | . . . . . . . . . . . . . . . . . . . . . . . . . . . . . Highest Corruption 29 | . . . . . . . . 3 1 3 7 7 7 7 . 1 2 2 2 4 6 15 8 14 29 8 11 11 Average Corruption 6 | . . . . . . . . 1 1 1 6 7 7 7 . 1 1 2 2 3 4 13 4 11 17 5 8 4 Corruption Purged 10 | . . . . . . . . . . 3 . . . . . . . . . . . . . . . 7 . . Corruption Blocked . | . . . . . . . . . . . . . . . . . . . . . . . . . . . . . Effects 638 | . . . . . . . . 19 2 2 18 60 18 54 . 12 5 24 17 33 14 82 30 35 63 67 61 22 Message Errors 132 | . . . . . . . . 2 . . 1 9 5 14 . 2 1 3 5 9 2 16 5 9 10 21 17 1 Matter Fused 153 | . . . . . . . . 5 2 . 5 24 4 13 . 4 1 6 7 8 3 20 4 2 22 13 8 2 Heat Flow Errors 75 | . . . . . . . . 4 . 1 2 4 1 8 . . 1 2 3 5 1 9 5 3 8 8 7 3 Energy Discharges 78 | . . . . . . . . 2 . 1 4 6 2 4 . 3 . 4 . 1 4 11 3 5 9 3 10 6 Parts Rejected 8 | . . . . . . . . . . . . . . . . . . 1 . . . 2 1 2 . 1 1 . Parts Fused 7 | . . . . . . . . . . . . 2 . . . . . . . . . 1 1 1 . . 2 . Data Loss (minor) 80 | . . . . . . . . 2 . . 3 5 4 9 . . . 3 1 5 3 9 6 5 7 11 3 4 Data Loss (major) 38 | . . . . . . . . . . . . 5 . 2 . 1 . 1 1 2 1 7 1 4 1 3 7 2 Misfires 35 | . . . . . . . . 3 . . . 3 2 2 . 1 2 1 . 2 . 5 4 2 1 4 3 . Alerts 12 | . . . . . . . . . . . 2 . . 1 . 1 . 1 . . . 1 . . 3 1 1 1 Misdirections 3 | . . . . . . . . . . . . . . . . . . . . . . . . . . . . 3 Weapon Failures 17 | . . . . . . . . 1 . . 1 2 . 1 . . . 2 . 1 . 1 . 2 2 2 2 . Overload Shots . | . . . . . . . . . . . . . . . . . . . . . . . . . . . . . Overflow Damage 1114 | . . . . . . 72 106 . . . . . . 18 . 12 22 14 . 13 40 235 75 12 51 204 106 134 Projectiles 851 | . . . . . . . . . . . . . . . . 12 22 14 . 13 40 225 45 12 51 177 106 134 Explosions 81 | . . . . . . 36 . . . . . . . 18 . . . . . . . . . . . 27 . . Melee 182 | . . . . . . 36 106 . . . . . . . . . . . . . . 10 30 . . . . . Knockbacks 1 | . . . . . . . 1 . . . . . . . . . . . . . . . . . . . . . Impact 1 | . . . . . . . 1 . . . . . . . . . . . . . . . . . . . . . Kinetic . | . . . . . . . . . . . . . . . . . . . . . . . . . . . . . Secondary . | . . . . . . . . . . . . . . . . . . . . . . . . . . . . . Self-Inflicted Damage 324 | . . . . . . . 5 4 . . . . . 75 . 7 . . . . . 112 35 . . 86 . . Shots 7 | . . . . . . . . . . . . . . 2 . . . . . . . 3 . . . 2 . . Rammed 29 | . 4 2 . 7 9 . 1 1 . . . . . . . 1 . . . . . 3 1 . . . . . Targets Rammed 32 | . 4 2 . 8 11 . 1 1 . . . . . . . 1 . . . . . 3 1 . . . . . Kicked . | . . . . . . . . . . . . . . . . . . . . . . . . . . . . . Crushed 3 | . . . . 1 2 . . . . . . . . . . . . . . . . . . . . . . . Highest Temperature 824 | . 114 177 . 288 19 . 69 210 53 522 367 415 99 409 86 400 376 458 169 354 136 471 381 824 456 479 199 197 Average Temperature 113 | . 46 76 . 79 5 . 20 43 30 162 125 145 70 123 35 122 146 135 68 102 74 176 152 271 127 138 103 81 Received Heat Transfer 3032 | . 114 99 . 279 684 126 63 125 132 117 66 150 12 108 8 94 . 80 13 61 7 103 32 38 111 194 36 180 Effects 38 | . . . . . . . . . . 3 1 13 . 1 . 4 . 2 . 2 . 3 1 7 . 1 . . Shutdowns 8 | . . . . . . . . . . 1 1 4 . 1 . 1 . . . . . . . . . . . . Energy Bleed 6 | . . . . . . . . . . . . 2 . . . . . 1 . 1 . 2 . . . . . . Interference 10 | . . . . . . . . . . . . 4 . . . 3 . . . 1 . . 1 1 . . . . Matter Decay 2 | . . . . . . . . . . . . 1 . . . . . 1 . . . . . . . . . . Short Circuit 4 | . . . . . . . . . . 1 . 2 . . . . . . . . . . . . . 1 . . Damage (minor) 1 | . . . . . . . . . . . . . . . . . . . . . . 1 . . . . . . Damage (major) 5 | . . . . . . . . . . . . . . . . . . . . . . . . 5 . . . . Damage (core) 2 | . . . . . . . . . . 1 . . . . . . . . . . . . . 1 . . . . Siege Activations . | . . . . . . . . . . . . . . . . . . . . . . . . . . . . . Martial Activations . | . . . . . . . . . . . . . . . . . . . . . . . . . . . . . Shielding Activations . | . . . . . . . . . . . . . . . . . . . . . . . . . . . . . Robots Disrupted 1 | . . . . . . . . . . . . . . . . . . . . . . . . . 1 . . . Combat Hostiles 1 | . . . . . . . . . . . . . . . . . . . . . . . . . 1 . . . Robots Corrupted 40 | . . . . . . 1 1 . . . . . . . . 4 . 1 . 1 . . 4 5 4 14 2 3 Combat Hostiles 35 | . . . . . . 1 . . . . . . . . . 4 . 1 . 1 . . 3 5 3 13 2 2 Parts Fried 64 | . . . . . . 2 1 . . . . . . . . 3 . 3 . 1 . . 6 11 7 18 1 11 Impact Corruptions 7 | . . . . . . 1 4 . . . . . . . . . . . . . . 1 1 . . . . . Robots Melted 13 | . . . . . . 1 . . . . 1 . . 1 . 2 . . . . . 1 . 1 2 2 2 . Combat Hostiles 9 | . . . . . . 1 . . . . 1 . . 1 . 1 . . . . . . . 1 1 2 1 . Parts Melted 82 | . . 1 . 2 . 1 . . 1 4 7 4 . 10 1 2 1 3 1 1 2 5 4 5 11 6 9 1 Heat Transferred 29824 | . 370 333 . 1369 37 1554 74 . . 1350 1800 3416 50 3232 475 1369 259 925 400 581 222 1612 1017 814 1017 4181 2220 1147 Parts Sabotaged . | . . . . . . . . . . . . . . . . . . . . . . . . . . . . . Parts Stolen . | . . . . . . . . . . . . . . . . . . . . . . . . . . . . . Parts Stripped . | . . . . . . . . . . . . . . . . . . . . . . . . . . . . . Power Chain Reactions 1 | . . . . . . . . . . . . . . . . . . . . 1 . . . . . . . . Alert | -11 -10 -10 -10 -9 -8 -8 -8 -8 -7 -7 -6 -6 -6 -6 -5 -5 -4 -4 -4 -4 -4 -4 -3 -3 -3 -2 -2 -1 ------- Run | Yrd Mat Min Exi Min Mat Gar Mat Gar Fac Gar Fac Gar Fac Gar Fac Gar Fac Gar Fac Gar Fac Gar Res Qua Gar Res Gar Acc Maximum Alert Level 4 | . . . . . 2 3 1 3 1 2 1 3 2 3 2 3 2 3 3 4 3 3 2 . 2 1 2 2 Low Security (%) 43 | 100 100 100 . 100 73 . 77 31 26 24 61 23 87 19 72 12 74 16 . . 21 7 69 100 20 78 9 42 Level 1 21 | . . . . . 11 1 22 28 73 5 38 13 . 20 . 26 . 9 29 26 33 13 9 . 57 21 47 55 Level 2 21 | . . . . . 15 62 . 37 . 69 . 25 12 27 27 25 25 39 59 2 39 37 21 . 22 . 42 1 Level 3 11 | . . . . . . 35 . 3 . . . 37 . 31 . 35 . 34 10 35 5 41 . . . . . . Level 4 1 | . . . . . . . . . . . . . . . . . . . . 35 . . . . . . . . Level 5 . | . . . . . . . . . . . . . . . . . . . . . . . . . . . . . High Security . | . . . . . . . . . . . . . . . . . . . . . . . . . . . . . Max Security . | . . . . . . . . . . . . . . . . . . . . . . . . . . . . . Peak Influence 1366 | . 127 81 . 65 490 797 388 722 385 647 339 954 500 960 504 964 506 975 1050 1366 716 945 531 98 493 299 671 402 Initial 716 | . . 31 . . 7 310 388 . 378 88 339 . 500 16 504 16 506 25 511 209 716 149 531 27 63 276 23 402 Average 320 | . 35 12 . 13 144 664 109 335 259 460 138 503 79 469 137 568 197 531 519 879 425 613 158 35 306 95 393 201 Influence Increases 17842 | . 303 96 . 369 1215 487 546 732 216 609 250 1224 63 1264 102 1128 130 1090 976 1247 570 956 768 501 720 1099 768 413 Destroy 0b10 Robot/C 8480 | . 180 80 . 320 720 340 300 420 120 420 160 520 40 640 40 560 80 480 400 420 200 255 225 225 330 570 270 165 Destroy 0b10 Robot/NC 352 | . 15 . . 5 80 10 35 . 30 . 10 5 . . 15 10 5 . 25 . 5 10 4 12 8 36 12 20 Destroy Leader 1300 | . 44 10 . 20 196 30 114 30 62 30 62 20 10 40 . 50 20 30 76 40 20 40 80 50 24 130 40 32 Allied During Kill 1679 | . . 6 . 24 . . . . . 35 11 49 8 102 4 82 3 42 201 324 205 57 306 89 50 57 20 4 Successful Hack 402 | . 7 . . . 44 . 14 20 4 12 . 10 . . 28 14 . 28 23 . 93 21 63 4 11 6 . . Select Force Hacks 53 | . 30 . . . . . . . . . . . . . . . . . . . . . . 23 . . . . Disable Machine 534 | . . . . . 30 . 60 . . . . . . . . . . . 165 60 15 . 24 72 . 60 . 48 Anti-Garrison Action 3242 | . . . . . . 50 . 200 . 50 . 500 . 350 . 300 . 450 . 350 . 425 . . 227 . 340 . Destroy Structure 1182 | . 12 . . . 10 27 23 62 . 17 7 75 5 87 . 82 22 30 86 38 32 103 66 26 70 180 62 60 Partial Spotted 78 | . . . . . . 15 . . . . . . . . . . . . . 15 . . . . . 12 . 36 Lose Combat Pursuer 540 | . 15 . . . 135 15 . . . 45 . 45 . 45 15 30 . 30 . . . 45 . . . 48 24 48 Influence Decreases 17815 | . 223 176 . 349 758 167 1343 10 812 88 897 270 994 327 1038 188 1057 152 1652 180 1722 225 1664 465 312 1561 128 1057 Entered New Map 4944 | . . 49 . . 13 167 409 . 344 38 308 . 454 7 456 8 458 12 464 90 650 65 414 22 22 217 8 269 Time Decay 5658 | . 223 117 . 323 544 . 336 . 458 . 351 . 165 . 134 . 294 . 478 . 302 . 515 351 . 589 . 478 Lost Part 691 | . . 10 . 20 51 . 10 10 . 10 10 10 . 10 . 10 . 40 . 10 20 40 10 . 50 140 60 170 Lost Ally 2448 | . . . . 6 . . . . 10 40 20 260 . 310 . 170 30 100 110 80 250 120 200 92 240 210 60 140 Purge Threat 4074 | . . . . . 150 . 588 . . . 208 . 375 . 448 . 275 . 600 . 500 . 525 . . 405 . . Squads Dispatched 62 | . 4 . . . 7 . 5 . 2 . 4 . 1 . 1 . 2 . 7 . 4 . 5 6 . 10 . 4 Investigation 7 | . 1 . . . 1 . 1 . . . . . . . 1 . . . . . . . . 2 . 1 . . Extermination 19 | . . . . . . . . . 2 . 1 . . . . . 1 . 2 . 1 . 3 1 . 5 . 3 Reinforcement 21 | . 3 . . . 3 . 1 . . . . . 1 . . . 1 . 2 . 2 . 2 2 . 3 . 1 Assault 1 | . . . . . . . . . . . . . . . . . . . . . 1 . . . . . . . Garrison 14 | . . . . . 3 . 3 . . . 3 . . . . . . . 3 . . . . 1 . 1 . . Intercept . | . . . . . . . . . . . . . . . . . . . . . . . . . . . . . Searches Triggered . | . . . . . . . . . . . . . . . . . . . . . . . . . . . . . Unchained Authorized 1 | . . . . . . . . . . . . . . . . . . . . . 1 . . . . . . . Construction Impeded 1 | . . . . . . . . . . . . . . . . . 1 . . . . . . . . . . . Haulers Reinforced 2 | . . . . . . . . . . . . . . . . . . . 1 . . . . . . 1 . . Active Scanning Responses . | . . . . . . . . . . . . . . . . . . . . . . . . . . . . . Cargo Convoy Interrupts . | . . . . . . . . . . . . . . . . . . . . . . . . . . . . . Alert ID Control Effect 89 | . . . . . . . . . . . . . . . . . . . . 1 8 21 20 18 2 14 3 2 Stealth | -11 -10 -10 -10 -9 -8 -8 -8 -8 -7 -7 -6 -6 -6 -6 -5 -5 -4 -4 -4 -4 -4 -4 -3 -3 -3 -2 -2 -1 --------- Run | Yrd Mat Min Exi Min Mat Gar Mat Gar Fac Gar Fac Gar Fac Gar Fac Gar Fac Gar Fac Gar Fac Gar Res Qua Gar Res Gar Acc Distress Signals 37 | . . 1 . . 5 . 3 . 1 . 2 . . 2 . . . . 2 . 1 . 2 4 . 8 . 6 Communications Jammed 483 | . . . . . . . . . . . . . . . . . . . 22 . 3 . 66 182 12 131 . 67 Distress Signals 477 | . . . . . . . . . . . . . . . . . . . 22 . 3 . 66 182 12 125 . 67 Times Spotted 774 | . 11 4 . 11 61 19 23 19 8 13 14 40 7 48 8 36 4 41 23 27 18 51 40 42 43 80 28 55 Peak Tracking Total 15 | . 4 2 . 2 4 4 3 3 3 2 4 8 1 6 4 4 2 8 7 4 5 15 4 6 8 7 7 7 Tactical Retreats 30 | . 1 . . . 7 1 . . . 3 . 2 . 2 1 2 . 1 . . . 2 . . . 4 1 3 Traps | -11 -10 -10 -10 -9 -8 -8 -8 -8 -7 -7 -6 -6 -6 -6 -5 -5 -4 -4 -4 -4 -4 -4 -3 -3 -3 -2 -2 -1 ------- Run | Yrd Mat Min Exi Min Mat Gar Mat Gar Fac Gar Fac Gar Fac Gar Fac Gar Fac Gar Fac Gar Fac Gar Res Qua Gar Res Gar Acc Traps Triggered 72 | . 3 . . . 1 4 . 2 . 4 1 9 . 4 . 9 1 5 . 6 1 10 1 1 3 . 6 1 Indirectly . | . . . . . . . . . . . . . . . . . . . . . . . . . . . . . Trap Hack Attempts . | . . . . . . . . . . . . . . . . . . . . . . . . . . . . . Triggered . | . . . . . . . . . . . . . . . . . . . . . . . . . . . . . Disarmed . | . . . . . . . . . . . . . . . . . . . . . . . . . . . . . Reprogrammed . | . . . . . . . . . . . . . . . . . . . . . . . . . . . . . Reused . | . . . . . . . . . . . . . . . . . . . . . . . . . . . . . Traps Extracted . | . . . . . . . . . . . . . . . . . . . . . . . . . . . . . Installed . | . . . . . . . . . . . . . . . . . . . . . . . . . . . . . Triggered . | . . . . . . . . . . . . . . . . . . . . . . . . . . . . . Machines | -11 -10 -10 -10 -9 -8 -8 -8 -8 -7 -7 -6 -6 -6 -6 -5 -5 -4 -4 -4 -4 -4 -4 -3 -3 -3 -2 -2 -1 ---------- Run | Yrd Mat Min Exi Min Mat Gar Mat Gar Fac Gar Fac Gar Fac Gar Fac Gar Fac Gar Fac Gar Fac Gar Res Qua Gar Res Gar Acc Machines Disabled 79 | . . . . . 2 1 4 2 . 1 . 6 . 4 . 4 . 4 11 8 1 7 2 6 3 5 4 4 Max in Single Turn 5 | . . . . . 1 1 1 1 . 1 . 1 . 1 . 1 . 1 5 1 1 1 . 1 1 1 1 1 Garrison Access 3 | . . . . . . . . . . . . . . . . . . . 1 . . . . . . 1 . 1 Garrison Relay 37 | . . . . . . 1 . 2 . 1 . 6 . 3 . 4 . 4 . 4 . 5 . . 3 . 4 . Machines Repaired . | . . . . . . . . . . . . . . . . . . . . . . . . . . . . . Machines Dismantled . | . . . . . . . . . . . . . . . . . . . . . . . . . . . . . Machines Sabotaged . | . . . . . . . . . . . . . . . . . . . . . . . . . . . . . Overloaded Fab Kills . | . . . . . . . . . . . . . . . . . . . . . . . . . . . . . Hacking | -11 -10 -10 -10 -9 -8 -8 -8 -8 -7 -7 -6 -6 -6 -6 -5 -5 -4 -4 -4 -4 -4 -4 -3 -3 -3 -2 -2 -1 --------- Run | Yrd Mat Min Exi Min Mat Gar Mat Gar Fac Gar Fac Gar Fac Gar Fac Gar Fac Gar Fac Gar Fac Gar Res Qua Gar Res Gar Acc Machines Accessed 87 | . 2 . 1 . 10 . 9 2 2 1 3 1 2 2 4 2 4 2 9 2 4 2 6 4 1 9 2 1 Terminals 55 | . 1 . . . 8 . 7 2 . 1 1 1 . 2 3 2 1 2 4 2 2 2 5 2 1 4 2 . Fabricators 6 | . . . . . . . . . . . 1 . 1 . . . 2 . . . . . . . . 2 . . Repair Stations 4 | . . . . . . . . . 1 . . . . . . . . . 1 . 1 . . . . 1 . . Recycling Units 1 | . 1 . . . . . . . . . . . . . . . . . . . . . . . . . . . Scanalyzers 6 | . . . . . 1 . 1 . . . . . . . . . . . 2 . . . 1 1 . . . . Garrison Access 14 | . . . . . 1 . 1 . 1 . 1 . 1 . 1 . 1 . 2 . 1 . . 1 . 2 . 1 Total Hacks 213 | . 2 . 1 . 38 . 31 5 9 1 5 2 4 2 9 2 8 4 25 3 11 3 17 9 2 15 4 1 Successful 121 | . 2 . 1 . 22 . 16 2 9 1 4 1 3 . 4 1 5 2 15 . 8 2 9 4 1 8 . 1 Failed 90 | . . . . . 15 . 14 3 . . 1 1 1 2 5 1 3 2 10 3 3 1 8 5 1 7 4 . Catastrophic 26 | . . . . . 1 . 2 1 . . . 1 . 2 . 1 2 . 3 1 1 1 3 1 1 3 2 . Database Lockouts 2 | . . . . . 1 . 1 . . . . . . . . . . . . . . . . . . . . . Manual 78 | . 2 . 1 . 21 . 20 2 . . . 1 2 1 3 . 3 . 8 . 3 . 4 2 . 5 . . Terminals 134 | . 1 . . . 29 . 28 5 . 1 1 2 . 2 6 2 3 4 8 3 5 3 16 4 2 5 4 . Fabricators 10 | . . . . . . . . . . . 2 . 2 . . . 3 . . . . . . . . 3 . . Repair Stations 22 | . . . . . . . . . 8 . . . . . . . . . 8 . 4 . . . . 2 . . Recycling Units 1 | . 1 . . . . . . . . . . . . . . . . . . . . . . . . . . . Scanalyzers 18 | . . . . . 8 . 2 . . . . . . . . . . . 5 . . . 1 2 . . . . Garrison Access 27 | . . . . . 1 . 1 . 1 . 2 . 2 . 3 . 2 . 4 . 2 . . 3 . 5 . 1 Terminal Hacks 39 | . 1 . 1 . 5 . 7 2 . 1 . 1 . . 1 1 . 2 1 . 2 2 8 1 1 2 . . Robot Schematic 1 | . 1 . . . . . . . . . . . . . . . . . . . . . . . . . . . Prototype ID Bank 2 | . . . . . 1 . . . . . . . . . . . . . . . . . 1 . . . . . Open Door 2 | . . . . . . . . . . . . . . . . . . . . . . 1 1 . . . . . Branch Access Points 3 | . . . . . . . . . . . . . . . 1 . . . . . . . 1 . . 1 . . Emergency Access Points 4 | . . . . . . . . . . . . 1 . . . 1 . 1 . . . 1 . . . . . . Terminal Index 4 | . . . . . 1 . 1 . . . . . . . . . . . . . 1 . 1 . . . . . Unreport Threat 7 | . . . . . 1 . 3 . . . . . . . . . . . 1 . . . 1 . . 1 . . Locate Traps 3 | . . . . . 1 . 1 . . . . . . . . . . . . . . . 1 . . . . . Recall Reinforcements 1 | . . . . . . . . . . . . . . . . . . . . . . . 1 . . . . . Hauler Manifests 3 | . . . . . 1 . 1 . . . . . . . . . . . . . . . . 1 . . . . Zone Layout 3 | . . . . . . . 1 . . . . . . . . . . . . . 1 . 1 . . . . . Garrison Registry 4 | . . . . . . . . 1 . 1 . . . . . . . 1 . . . . . . 1 . . . Patrol Navigation 1 | . . . . . . . . 1 . . . . . . . . . . . . . . . . . . . . Proto ID Catalog 1 | . . . 1 . . . . . . . . . . . . . . . . . . . . . . . . . Fabricator Hacks 6 | . . . . . . . . . . . 2 . . . . . 2 . . . . . . . . 2 . . Load Schematic 3 | . . . . . . . . . . . 1 . . . . . 1 . . . . . . . . 1 . . Build 3 | . . . . . . . . . . . 1 . . . . . 1 . . . . . . . . 1 . . Repair Station Hacks 13 | . . . . . . . . . 8 . . . . . . . . . 3 . 2 . . . . . . . Scan Component 7 | . . . . . . . . . 4 . . . . . . . . . 2 . 1 . . . . . . . Repair 6 | . . . . . . . . . 4 . . . . . . . . . 1 . 1 . . . . . . . Recycling Unit Hacks . | . . . . . . . . . . . . . . . . . . . . . . . . . . . . . Scanalyzer 11 | . . . . . 6 . 1 . . . . . . . . . . . 4 . . . . . . . . . Retrieve Study 11 | . . . . . 6 . 1 . . . . . . . . . . . 4 . . . . . . . . . Garrison Access Hacks 24 | . . . . . 1 . 1 . 1 . 2 . 2 . 2 . 2 . 4 . 2 . . 2 . 4 . 1 Unlock Access 11 | . . . . . 1 . 1 . 1 . 1 . 1 . 1 . 1 . 1 . 1 . . 1 . 1 . . Seal Access 3 | . . . . . . . . . . . . . . . . . . . 1 . . . . . . 1 . 1 Coupler Status 10 | . . . . . . . . . . . 1 . 1 . 1 . 1 . 2 . 1 . . 1 . 2 . . Unauthorized Hacks 28 | . 1 . . . 10 . 7 . . . . . 1 . 1 . 1 . 3 . 2 . 1 1 . . . . Terminals 23 | . . . . . 10 . 7 . . . . . . . 1 . 1 . 2 . 1 . 1 . . . . . Assimilate 5 | . . . . . 2 . 3 . . . . . . . . . . . . . . . . . . . . . Botnet 4 | . . . . . 2 . 1 . . . . . . . . . . . 1 . . . . . . . . . Operators 7 | . . . . . 1 . 1 . . . . . . . 1 . 1 . 1 . 1 . 1 . . . . . Skim 7 | . . . . . 5 . 2 . . . . . . . . . . . . . . . . . . . . . Fabricators 1 | . . . . . . . . . . . . . 1 . . . . . . . . . . . . . . . Haulers 1 | . . . . . . . . . . . . . 1 . . . . . . . . . . . . . . . Repair Stations 2 | . . . . . . . . . . . . . . . . . . . 1 . 1 . . . . . . . Mechanics 2 | . . . . . . . . . . . . . . . . . . . 1 . 1 . . . . . . . Recycling Units 1 | . 1 . . . . . . . . . . . . . . . . . . . . . . . . . . . Tunnel 1 | . 1 . . . . . . . . . . . . . . . . . . . . . . . . . . . Scanalyzers . | . . . . . . . . . . . . . . . . . . . . . . . . . . . . . Garrison Access 1 | . . . . . . . . . . . . . . . . . . . . . . . . 1 . . . . Eject 1 | . . . . . . . . . . . . . . . . . . . . . . . . 1 . . . . Data Cores Recovered . | . . . . . . . . . . . . . . . . . . . . . . . . . . . . . Used . | . . . . . . . . . . . . . . . . . . . . . . . . . . . . . Hacking Detections 66 | . 1 . . . 8 . 7 1 2 1 2 1 2 2 4 2 3 1 7 2 3 . 5 3 1 6 2 . Full Trace Events 9 | . . . . . 1 . 1 . . . . . . . 1 . . 1 . 1 . . . 1 1 1 1 . Feedback Events . | . . . . . . . . . . . . . . . . . . . . . . . . . . . . . Feedback Blocked . | . . . . . . . . . . . . . . . . . . . . . . . . . . . . . Robot Schematics Acquired 1 | . 1 . . . . . . . . . . . . . . . . . . . . . . . . . . . Robots Built 3 | . . . . . . . . . . . 1 . . . . . 1 . . . . . . . . 1 . . Authchips 3 | . . . . . . . . . . . 1 . . . . . 1 . . . . . . . . 1 . . Time 120 | . . . . . . . . . . . 40 . . . . . 40 . . . . . . . . 40 . . Total Robot Build Rating 3 | . . . . . . . . . . . 1 . . . . . 1 . . . . . . . . 1 . . Part Schematics Acquired 2 | . . . . . . . . . . . . . . . . . . . . . . . . 2 . . . . Parts Built . | . . . . . . . . . . . . . . . . . . . . . . . . . . . . . Authchips . | . . . . . . . . . . . . . . . . . . . . . . . . . . . . . Time . | . . . . . . . . . . . . . . . . . . . . . . . . . . . . . Total Part Build Rating . | . . . . . . . . . . . . . . . . . . . . . . . . . . . . . Part Studies Acquired 11 | . . . . . 6 . 1 . . . . . . . . . . . 4 . . . . . . . . . Parts Repaired 6 | . . . . . . . . . 4 . . . . . . . . . 1 . 1 . . . . . . . Time 270 | . . . . . . . . . 170 . . . . . . . . . 86 . 14 . . . . . . . Parts Recycled . | . . . . . . . . . . . . . . . . . . . . . . . . . . . . . Recycled Matter . | . . . . . . . . . . . . . . . . . . . . . . . . . . . . . Retrieved Matter . | . . . . . . . . . . . . . . . . . . . . . . . . . . . . . Retrieved Components . | . . . . . . . . . . . . . . . . . . . . . . . . . . . . . Parts Scanalyzed . | . . . . . . . . . . . . . . . . . . . . . . . . . . . . . Part Schematics Acquired . | . . . . . . . . . . . . . . . . . . . . . . . . . . . . . Parts Damaged . | . . . . . . . . . . . . . . . . . . . . . . . . . . . . . Bothacking | -11 -10 -10 -10 -9 -8 -8 -8 -8 -7 -7 -6 -6 -6 -6 -5 -5 -4 -4 -4 -4 -4 -4 -3 -3 -3 -2 -2 -1 ------------ Run | Yrd Mat Min Exi Min Mat Gar Mat Gar Fac Gar Fac Gar Fac Gar Fac Gar Fac Gar Fac Gar Fac Gar Res Qua Gar Res Gar Acc Used RIF Installer 11 | . . . . . . 2 . 1 . 1 . 1 . 1 . 1 . . . 1 . 1 . . 1 . 1 . Coupler Efficiency 1 | . . . . . . . . . . . . . . . . . . . . . . . . . 1 . . . Command Fork 1 | . . . . . . 1 . . . . . . . . . . . . . . . . . . . . . . Threat Obfuscator 1 | . . . . . . . . . . . . . . . . . . . . . . 1 . . . . . . Signal Jammer 1 | . . . . . . . . . . . . 1 . . . . . . . . . . . . . . . . Zone Cloak 2 | . . . . . . . . 1 . . . . . . . . . . . . . . . . . . 1 . Robot Detection 1 | . . . . . . . . . . . . . . 1 . . . . . . . . . . . . . . Alert ID Control 1 | . . . . . . . . . . . . . . . . . . . . 1 . . . . . . . . Structural Interface 1 | . . . . . . . . . . . . . . . . 1 . . . . . . . . . . . . Program Shield 1 | . . . . . . . . . . 1 . . . . . . . . . . . . . . . . . . Robots Hacked 184 | . . . . . . . 1 . 1 . 6 9 2 10 4 10 1 14 9 12 5 13 11 9 12 24 7 24 Non-combat 35 | . . . . . . . 1 . 1 . 3 . 1 . 1 . 1 . 5 . 2 . 4 . 1 7 . 8 Combat 149 | . . . . . . . . . . . 3 9 1 10 3 10 . 14 4 12 3 13 7 9 11 17 7 16 Robot Hacks Applied 227 | . . . . . . . 2 . 2 . 10 10 6 10 9 10 3 15 14 12 12 14 13 9 13 30 7 26 parse_system 12 | . . . . . . . . . . . . 2 . . . . . . 1 1 . 2 . . . 5 . 1 find_fabricator 1 | . . . . . . . . . . . 1 . . . . . . . . . . . . . . . . . drop_inventory 12 | . . . . . . . . . . . 2 . . . . . . . 3 . 1 . 2 . . 1 . 3 purge_threat 27 | . . . . . . . 2 . . . 2 . 3 . 4 . 2 . 4 . 5 . 3 . . 2 . . block_reporting 7 | . . . . . . . . . . . 1 . 1 . 1 . 1 . 1 . 1 . . . . 1 . . map_route 4 | . . . . . . . . . . . . . . . . . . . . . . . . . . . . 4 redirect_shields 1 | . . . . . . . . . . . . . . . . . . . . . . . . . 1 . . . disable_scanner 1 | . . . . . . . . . . . . . . . . . . . . . . . . 1 . . . . find_garrison 3 | . . . . . . . . . . . . . 1 . . . . . . . 1 . . . . 1 . . link_fov 1 | . . . . . . . . . . . . . . . . . . . . . . . . . . . . 1 link_complan 1 | . . . . . . . . . . . . . . . . . . . . . . . . . . 1 . . overload_power 2 | . . . . . . . . . . . . . . . . . . 1 . 1 . . . . . . . . amplify_resonance 41 | . . . . . . . . . . . . 2 . 4 2 3 . 7 . 2 1 3 1 3 2 4 2 5 reboot_system 2 | . . . . . . . . . . . . . . . . . . . . . . . . . . 1 . 1 go_dormant 1 | . . . . . . . . . . . . . . . . 1 . . . . . . . . . . . . overwrite_iff 31 | . . . . . . . . . . . 1 1 . 2 . 2 . 3 . 1 . 1 1 3 6 3 3 4 formatsys_low 15 | . . . . . . . . . 2 . 1 . . . 1 . . . 2 . 1 . 1 1 . 5 . 1 formatsys_high 65 | . . . . . . . . . . . 2 5 1 4 1 4 . 4 3 7 2 8 5 1 4 6 2 6 Relay Couplers Released 161 | . . . . . . 7 . 7 . 8 4 23 . 11 . 17 . 15 . 14 . 25 . 4 10 . 14 2 Ejected 4 | . . . . . . . . . . . . . . . . . . . . . . . . 4 . . . . Machine Destruction 146 | . . . . . . 4 . 7 . 4 . 23 . 11 . 17 . 15 . 14 . 25 . . 10 . 14 2 Programmers 11 | . . . . . . 3 . . . 4 4 . . . . . . . . . . . . . . . . . Attached 96 | . . . . . . . 1 1 1 1 3 7 1 7 3 4 3 5 3 7 3 7 5 4 6 8 6 10 Fabnet Peak Effective % . | . . . . . . . . . . . . . . . . . . . . . . . . . . . . . Robots Rewired 28 | . . . . . . . . . . . . 6 . 7 . . . 3 . 1 . 10 . . 1 . . . Allies Hacked 1 | . . . . . . . . . . . . . . . . . . . . . . . . . . 1 . . Hacks Repelled . | . . . . . . . . . . . . . . . . . . . . . . . . . . . . . Allies | -11 -10 -10 -10 -9 -8 -8 -8 -8 -7 -7 -6 -6 -6 -6 -5 -5 -4 -4 -4 -4 -4 -4 -3 -3 -3 -2 -2 -1 -------- Run | Yrd Mat Min Exi Min Mat Gar Mat Gar Fac Gar Fac Gar Fac Gar Fac Gar Fac Gar Fac Gar Fac Gar Res Qua Gar Res Gar Acc Total Allies 183 | . . 3 . 2 . . 1 . 2 . 6 14 1 13 2 9 1 13 6 14 3 21 9 7 18 17 8 13 Largest Group 16 | . . 3 3 5 . . 1 1 2 2 3 8 4 9 3 4 1 4 7 13 14 14 16 10 4 4 3 4 Highest-Rated Group 952 | . . 40 40 86 . . 10 10 24 20 72 228 101 252 93 215 49 210 423 679 726 752 952 586 308 317 180 244 Highest-Rated Ally 183 | . . 16 16 31 . . 10 10 14 14 32 80 32 85 47 80 49 80 80 119 119 119 142 142 116 183 64 183 Total Orders 67 | . . . . . . . . 8 4 1 1 10 . 16 . 3 1 2 1 . 2 1 3 1 . 8 4 1 STAY 28 | . . . . . . . . 4 1 1 . 3 . 8 . 2 . 2 . . 1 1 1 . . 2 2 . ROAM 1 | . . . . . . . . . . . . . . . . . . . . . . . . . . 1 . . FOLLOW 18 | . . . . . . . . 4 1 . . 4 . 4 . 1 . . . . 1 . 1 . . . 2 . AID 20 | . . . . . . . . . 2 . 1 3 . 4 . . 1 . 1 . . . 1 1 . 5 . 1 Ally Attacks 1203 | . . 4 . 23 . . . . . 23 10 74 8 89 5 69 7 51 51 57 98 103 190 144 52 94 24 27 Total Damage 38818 | . . 38 . 215 . . . . . 1172 132 1814 127 2586 89 1573 198 1600 2578 1609 2938 3534 6102 4274 2275 4209 685 1070 Kills 223 | . . 1 . 4 . . . . . 14 1 13 2 11 1 15 1 12 20 12 16 27 25 22 7 14 3 2 Allies Corrupted 22 | . . . . . . . . . . . 1 . . 1 . 1 1 . . 1 5 1 3 2 2 2 1 1 Allies Melted 2 | . . . . . . . . . . . . 1 . . . . . . . . . . . . . . 1 . Turrets Deployed 3 | . . . . . . . . . . 1 . . . 2 . . . . . . . . . . . . . . Intel | -11 -10 -10 -10 -9 -8 -8 -8 -8 -7 -7 -6 -6 -6 -6 -5 -5 -4 -4 -4 -4 -4 -4 -3 -3 -3 -2 -2 -1 ------- Run | Yrd Mat Min Exi Min Mat Gar Mat Gar Fac Gar Fac Gar Fac Gar Fac Gar Fac Gar Fac Gar Fac Gar Res Qua Gar Res Gar Acc Active Infowar (turns) 4222 | . . . . . 3018 . . . . . . . . . . . . . . . . . . . . . . 1204 Optics 3519 | . . . . . 3018 . . . . . . . . . . . . . . . . . . . . . . 501 IFF 703 | . . . . . . . . . . . . . . . . . . . . . . . . . . . . 703 Robot Analysis Total . | . . . . . . . . . . . . . . . . . . . . . . . . . . . . . Derelict Logs Recovered 3 | . . 1 . 2 . . . . . . . . . . . . . . . . . . . . . . . . Drone Launches . | . . . . . . . . . . . . . . . . . . . . . . . . . . . . . Drone Recoveries . | . . . . . . . . . . . . . . . . . . . . . . . . . . . . . Exploration | -11 -10 -10 -10 -9 -8 -8 -8 -8 -7 -7 -6 -6 -6 -6 -5 -5 -4 -4 -4 -4 -4 -4 -3 -3 -3 -2 -2 -1 ------------- Run | Yrd Mat Min Exi Min Mat Gar Mat Gar Fac Gar Fac Gar Fac Gar Fac Gar Fac Gar Fac Gar Fac Gar Res Qua Gar Res Gar Acc Turns Passed 38314 | 67 897 689 428 1614 3153 1104 1150 1245 1146 880 997 1972 591 1894 513 1792 659 1837 1229 1250 679 2062 1521 1076 1540 3006 2041 1282 Spaces Moved 16038 | 39 486 400 215 376 1174 443 586 597 499 449 505 861 318 888 247 806 311 775 563 608 327 886 594 412 512 967 741 453 Core 160 | 3 . . . . . . . . . . . . . . . . . . . . . . . . . . . 157 Treads 2995 | 36 486 400 215 376 1174 308 . . . . . . . . . . . . . . . . . . . . . . Legs . | . . . . . . . . . . . . . . . . . . . . . . . . . . . . . Wheels 12883 | . . . . . . 135 586 597 499 449 505 861 318 888 247 806 311 775 563 608 327 886 594 412 512 967 741 296 Hover . | . . . . . . . . . . . . . . . . . . . . . . . . . . . . . Flight . | . . . . . . . . . . . . . . . . . . . . . . . . . . . . . Fastest Speed 50 | 50 160 160 160 240 200 160 160 160 145 160 160 175 175 175 175 175 190 175 180 180 180 180 225 210 225 225 225 50 Average Speed 194 | 151 160 160 197 240 209 209 160 160 159 160 160 175 175 176 175 191 190 189 182 180 184 200 225 220 242 248 241 203 Slowest Speed 430 | 160 160 160 240 240 240 240 160 160 160 160 175 175 175 190 175 205 190 190 330 180 195 225 225 225 250 270 430 430 Overloaded Moves . | . . . . . . . . . . . . . . . . . . . . . . . . . . . . . Propulsion Burnouts . | . . . . . . . . . . . . . . . . . . . . . . . . . . . . . Robots Hopped . | . . . . . . . . . . . . . . . . . . . . . . . . . . . . . Potential Cave-ins 2 | . . . . . . . . . . . . . . . . . 2 . . . . . . . . . . . Cave-ins Triggered . | . . . . . . . . . . . . . . . . . . . . . . . . . . . . . Teleports 1 | . . . . . . . . . . . . . . . . . . . . . . . . . . 1 . . Exploration Rate (%) 52 | 4 78 73 61 71 85 70 60 64 15 60 11 92 8 83 8 86 8 85 21 94 12 93 21 53 66 32 90 18 Regions Visited 28 Branch Regions 4 Pre-discovered Areas 3 | . 1 . . 1 1 . . . . . . . . . . . . . . . . . . . . . . . Known Exits Taken 12 | . . . . . 1 . 1 . 1 . 1 . 1 . 1 . 1 . 1 . 1 . 1 1 . 1 . . Unknown Exits Taken 5 | 1 1 1 1 1 . . . . . . . . . . . . . . . . . . . . . . . . Scrap Searched 3 | . . 1 . 2 . . . . . . . . . . . . . . . . . . . . . . . . Spaces Dug 47 | . . . . . . . 6 2 . . 4 . 4 . . . 5 1 4 . 2 5 . . . 8 2 4 Terrain Destroyed 334 | . 11 . . . 6 8 26 4 . . 7 . 6 12 . 6 11 10 44 24 3 48 8 5 8 48 19 20 Melee 12 | . . . . . . . 6 2 . . 4 . . . . . . . . . . . . . . . . . Projectile 175 | . . . . . 6 . 4 2 . . 3 . 6 . . 6 11 10 5 10 3 17 8 5 8 32 19 20 AOE 147 | . 11 . . . . 8 16 . . . . . . 12 . . . . 39 14 . 31 . . . 16 . . Terrain Rammed . | . . . . . . . . . . . . . . . . . . . . . . . . . . . . . Walls Destroyed . | . . . . . . . . . . . . . . . . . . . . . . . . . . . . . Machines Disabled . | . . . . . . . . . . . . . . . . . . . . . . . . . . . . . Actions | -11 -10 -10 -10 -9 -8 -8 -8 -8 -7 -7 -6 -6 -6 -6 -5 -5 -4 -4 -4 -4 -4 -4 -3 -3 -3 -2 -2 -1 --------- Run | Yrd Mat Min Exi Min Mat Gar Mat Gar Fac Gar Fac Gar Fac Gar Fac Gar Fac Gar Fac Gar Fac Gar Res Qua Gar Res Gar Acc Total 21820 | 44 551 432 219 996 1607 551 724 761 805 564 619 1215 347 1091 320 1058 377 1138 758 761 399 1161 769 577 805 1502 933 736 Wait 2585 | . 10 10 . 567 233 14 67 51 244 43 38 160 14 32 31 51 38 198 144 25 22 60 75 53 114 160 28 103 Move 16020 | 38 485 399 214 376 1174 442 586 596 499 448 505 860 318 887 247 805 311 774 563 607 327 885 593 411 511 967 740 452 Hop . | . . . . . . . . . . . . . . . . . . . . . . . . . . . . . Pick Up 245 | . 12 7 4 1 21 5 7 8 4 7 6 16 1 7 2 12 . 8 5 10 . 21 4 9 13 24 21 10 Fast Attach 79 | 6 2 . . . 9 1 . 1 3 1 1 2 . 2 2 1 . 5 3 1 4 6 4 4 5 4 3 9 Attach 144 | . 1 1 . 3 10 . 3 1 5 1 5 5 1 3 5 4 3 3 5 5 3 6 7 1 8 23 11 21 Detach 41 | . 2 . . . 2 1 . . . 1 . 4 . 2 4 1 . 2 2 . . 3 4 . 1 5 4 3 Swap 315 | . 3 1 1 . 11 7 11 10 4 13 19 30 1 30 6 16 3 13 6 11 5 14 6 7 18 25 13 31 Drop 153 | . 3 3 . 1 23 3 6 7 2 7 4 9 . 5 . 10 . 1 5 6 4 8 2 7 8 6 16 7 Fire 1791 | . 29 9 . 41 113 52 34 56 43 15 36 69 12 87 22 115 22 88 23 64 32 121 71 76 109 287 65 100 Melee 38 | . . . . . . 6 9 14 . 4 5 . . . . . . . . . . . . . . . . . Ram 7 | . . . . . . . 1 1 . . . . . . . 1 . . . . . 3 1 . . . . . Kick . | . . . . . . . . . . . . . . . . . . . . . . . . . . . . . Crush 24 | . 4 2 . 7 11 . . . . . . . . . . . . . . . . . . . . . . . Escape Stasis 308 | . . . . . . 20 . 16 . 24 . 32 . 24 . 40 . 32 . 32 . 32 . 8 16 . 32 . Rewire 70 | . . . . . . . . . 1 . . 28 . 12 1 2 . 14 2 . 2 2 2 1 2 1 . . Trap . | . . . . . . . . . . . . . . . . . . . . . . . . . . . . . Miscellaneous . | . . . . . . . . . . . . . . . . . . . . . . . . . . . . . Route ------- -11/Scrapyard -10/Materials (discovered 6 exits: [*Mat x3] / [*Min x2] / [*Sub]) -10/Mines (discovered 2 exits: [*Mat] / *Exi) -10/Exiles -9/Mines (discovered 2 exits: *Mat x2) -8/Materials (discovered 5 exits: *Fac x3 / [*Sto] / Gar) -8/Garrison (discovered 3 exits: *Mat x3) -8/Materials (discovered 3 exits: *Fac / [*Sto] / Gar) -8/Garrison (discovered 3 exits: *Fac x3) -7/Factory (discovered 2 exits: [*Low] / Gar) -7/Garrison (discovered 3 exits: *Fac x3) -6/Factory -6/Garrison (discovered 3 exits: *Fac x3) -6/Factory -6/Garrison (discovered 3 exits: *Fac x3) -5/Factory (discovered 3 exits: Upp x2 / Gar) -5/Garrison (discovered 3 exits: *Fac x3) -4/Factory -4/Garrison (discovered 4 exits: *Res x3 / *Fac) -4/Factory -4/Garrison (discovered 3 exits: *Fac x3) -4/Factory -4/Garrison (discovered 2 exits: *Res x2) -3/Research (discovered 3 exits: *Res / *Qua x2) -3/Quarantine (discovered 2 exits: *Res / Gar) -3/Garrison (discovered 3 exits: *Res x3) -2/Research (discovered 4 exits: *Acc / Tes x2 / Gar) -2/Garrison (discovered 3 exits: *Acc x3) -1/Access To Epsilon Eridani History --------- Turn | Location | Event 2 | -11/Scrapyard | Discovered new exit (range 16) 68 | -11/Scrapyard | Entered Materials 68 | -10/Materials | Discovered new exit (range 8) 69 | -10/Materials | Met a group of wandering Federalists 265 | -10/Materials | Discovered new exit (range 16) 304 | -10/Materials | Build established: Mutant 310 | -10/Materials | Discovered new exit (range 16) 324 | -10/Materials | Discovered new exit (range 8) 671 | -10/Materials | Discovered new exit (range 15) 827 | -10/Materials | Discovered new exit (range 6) 965 | -10/Materials | Entered Mines 975 | -10/Mines | Met a Derelict bent on vengeance 1005 | -10/Mines | Learned Materials non-interactive machine intel 1041 | -10/Mines | A weapon hastily lodged in a ceiling crevice suddenly fell to the ground 1186 | -10/Mines | Assisted by bots powering up and referring to "LRC-V3" 1219 | -10/Mines | Discovered new exit (range 7) 1395 | -10/Mines | Deemed a non-threat by the Exiles lab entrance 1506 | -10/Mines | Found a hidden stash of uninstalled traps 1550 | -10/Mines | Joined a pair of Derelicts in attacking an 0b10 outpost 1637 | -10/Mines | Discovered new exit (range 5) 1654 | -10/Mines | Entered Exiles 1654 | -10/Exiles | Accompanied by 3 allies 1693 | -10/Exiles | Met 8R-AWN 1720 | -10/Exiles | Met EX-HEX 1766 | -10/Exiles | Met EX-BIN 1789 | -10/Exiles | Aligned with FarCom system 1790 | -10/Exiles | Given EX-Vault access code 1829 | -10/Exiles | Opened EX-Vault 1838 | -10/Exiles | Found AWS/Thermal 1842 | -10/Exiles | Found Deploy-a-Sentry 1845 | -10/Exiles | Found Deploy-a-Sentry 1849 | -10/Exiles | Found Deploy-a-Sentry 1900 | -10/Exiles | Warned to stay clear of 0b10 Research branches 1927 | -10/Exiles | Exiles lab attacked by MAIN.C 2061 | -10/Exiles | Discovered new exit (range 11) 2082 | -10/Exiles | Stole two prototypes: AWS/Thermal, Deploy-a-Sentry 2082 | -10/Exiles | Entered Mines 2082 | -9/Mines | Accompanied by 3 allies 2237 | -9/Mines | Excavation squad dispatched 2237 | -9/Mines | A large section of the Mines collapsed 2487 | -9/Mines | Excavation squad dispatched 2529 | -9/Mines | Lost 3 allies 2737 | -9/Mines | Excavation squad dispatched 2892 | -9/Mines | Discovered new exit (range 14) 2984 | -9/Mines | Discovered new exit (range 10) 3158 | -9/Mines | Learned Materials terminal intel 3696 | -9/Mines | Entered Materials 3696 | -8/Materials | Evolved 4 slots: Utility x3, Weapon x1 3697 | -8/Materials | Loaded intel: 38 non-interactive machine locations 3698 | -8/Materials | Loaded intel: 12 terminal locations 3976 | -8/Materials | Build established: Tank 4225 | -8/Materials | Discovered new exit (range 17) 4544 | -8/Materials | Central database locked down 4593 | -8/Materials | Build established: Scavenger-Tank 5361 | -8/Materials | Discovered new exit (range 20) 5713 | -8/Materials | Discovered new exit (range 9) 6026 | -8/Materials | Garrison activated, responded to threat 6029 | -8/Materials | Learned location of 1 exit from Storage 6082 | -8/Materials | Learned location of 1 exit from Extension 6127 | -8/Materials | Learned location of Lower Caves (-6) 6163 | -8/Materials | Identified exit to Factory 6191 | -8/Materials | Learned Factory stockpile data 6209 | -8/Materials | Learned location of 1 exit from Lower Caves 6238 | -8/Materials | Learned 2 Storage zone layouts 6277 | -8/Materials | Learned 2 Storage zone layouts 6849 | -8/Materials | Identified exit to Garrison 6849 | -8/Materials | Entered Garrison 6905 | -8/Garrison | Triggered checkpoint 6956 | -8/Garrison | Installed Relay Interface Framework 6976 | -8/Garrison | Garrison Relay disabled 7149 | -8/Garrison | Triggered checkpoint 7197 | -8/Garrison | Triggered checkpoint 7287 | -8/Garrison | Discovered new exit (range 10) 7432 | -8/Garrison | Build established: Mutant 7445 | -8/Garrison | Triggered checkpoint 7517 | -8/Garrison | Discovered new exit (range 8) 7559 | -8/Garrison | Triggered checkpoint 7905 | -8/Garrison | Discovered new exit (range 13) 7922 | -8/Garrison | Expanded RIF knowledge: Command Fork 7953 | -8/Garrison | Entered Materials 8014 | -8/Materials | Build established: Skirmisher 8031 | -8/Materials | Garrison activated, responded to threat 8032 | -8/Materials | AWS/Thermal suddenly broke down 8124 | -8/Materials | Discovered new exit (range 17) 8500 | -8/Materials | Central database locked down 8505 | -8/Materials | Discovered exit to Factory (range 11) 9103 | -8/Materials | Identified exit to Garrison 9103 | -8/Materials | Entered Garrison 9103 | -8/Garrison | Accompanied by 1 ally 9195 | -8/Garrison | Triggered checkpoint 9489 | -8/Garrison | Discovered exit to Factory (range 29) 9489 | -8/Garrison | Discovered exit to Factory (range 58) 9489 | -8/Garrison | Discovered exit to Factory (range 77) 9627 | -8/Garrison | Triggered checkpoint 9640 | -8/Garrison | Triggered checkpoint 9687 | -8/Garrison | Build established: Scavenger-Skirmisher 9753 | -8/Garrison | Expanded RIF knowledge: Zone Cloak 9991 | -8/Garrison | Triggered checkpoint 10063 | -8/Garrison | Garrison Relay disabled 10172 | -8/Garrison | Build established: Bothacker-Mutant 10241 | -8/Garrison | Triggered checkpoint 10266 | -8/Garrison | Garrison Relay disabled 10348 | -8/Garrison | Entered Factory 10348 | -7/Factory | Accompanied by 1 ally 10348 | -7/Factory | Evolved 2 slots: Utility x2 10350 | -7/Factory | FarCom data flow suspended 10651 | -7/Factory | Build established: Bothacker-Tank 10704 | -7/Factory | Repaired Arm. Huge Wheel 10756 | -7/Factory | Discovered new exit (range 8) 10765 | -7/Factory | Repaired Hrd. Heavy Armor Plating? 10921 | -7/Factory | Repaired Deuterium Engine+ 10969 | -7/Factory | Repaired Arm. Huge Wheel? 11159 | -7/Factory | P-60 Hacker assimilated allied Machinist 4a 11494 | -7/Factory | Identified exit to Garrison 11494 | -7/Factory | Entered Garrison 11494 | -7/Garrison | Accompanied by 2 allies 11523 | -7/Garrison | Discovered new exit (range 66) 11523 | -7/Garrison | Discovered new exit (range 59) 11523 | -7/Garrison | Discovered new exit (range 72) 11612 | -7/Garrison | Garrison Relay disabled 11705 | -7/Garrison | DAS Turret deployed 11709 | -7/Garrison | Triggered checkpoint 11720 | -7/Garrison | Triggered checkpoint 11767 | -7/Garrison | Triggered checkpoint 11935 | -7/Garrison | Expanded RIF knowledge: Program Shield 12374 | -7/Garrison | Entered Factory 12374 | -6/Factory | Evolved 2 slots: Power x1, Utility x1 12405 | -6/Factory | Build established: Botlord-Mutant 13020 | -6/Factory | Fabricated M-13 Machinist (x1) 13114 | -6/Factory | Garrison activated, responded to threat 13149 | -6/Factory | Build established: Botlord-Tank 13370 | -6/Factory | Identified exit to Garrison 13371 | -6/Factory | Entered Garrison 13371 | -6/Garrison | Accompanied by 3 allies 13447 | -6/Garrison | Triggered checkpoint 13528 | -6/Garrison | Garrison Relay disabled 13564 | -6/Garrison | Found embedded Infiltrators 13583 | -6/Garrison | Spotted B-75 Beast 13594 | -6/Garrison | Destroyed B-75 Beast 13890 | -6/Garrison | Triggered checkpoint 13993 | -6/Garrison | Expanded RIF knowledge: Signal Jamming 14005 | -6/Garrison | Discovered new exit (range 12) 14070 | -6/Garrison | Triggered checkpoint 14108 | -6/Garrison | Garrison Relay disabled 14171 | -6/Garrison | Garrison Relay disabled 14391 | -6/Garrison | Discovered new exit (range 11) 14425 | -6/Garrison | Triggered checkpoint 14513 | -6/Garrison | Garrison Relay disabled 14685 | -6/Garrison | Triggered checkpoint 14709 | -6/Garrison | Triggered checkpoint 14820 | -6/Garrison | Discovered new exit (range 8) 14837 | -6/Garrison | Triggered checkpoint 14876 | -6/Garrison | Garrison Relay disabled 14894 | -6/Garrison | Lost 4 allies 14906 | -6/Garrison | Triggered checkpoint 15077 | -6/Garrison | Garrison Relay disabled 15343 | -6/Garrison | Entered Factory 15343 | -6/Factory | Accompanied by 3 allies 15933 | -6/Factory | Identified exit to Garrison 15934 | -6/Factory | Entered Garrison 15934 | -6/Garrison | Accompanied by 4 allies 16160 | -6/Garrison | Garrison Relay disabled 16194 | -6/Garrison | Triggered checkpoint 16305 | -6/Garrison | Triggered checkpoint 16345 | -6/Garrison | Triggered checkpoint 16427 | -6/Garrison | Lost 5 allies 16443 | -6/Garrison | Found Quantum Capacitor 16655 | -6/Garrison | Triggered checkpoint 16658 | -6/Garrison | DAS Turret deployed 16711 | -6/Garrison | Triggered checkpoint 16734 | -6/Garrison | Triggered checkpoint 16898 | -6/Garrison | Discovered new exit (range 10) 17008 | -6/Garrison | Triggered checkpoint 17047 | -6/Garrison | Garrison Relay disabled 17175 | -6/Garrison | Spotted B-86 Titan 17180 | -6/Garrison | Spotted B-90 Cyclops 17183 | -6/Garrison | DAS Turret deployed 17188 | -6/Garrison | Rewired B-75 Beast 17193 | -6/Garrison | Allies destroyed B-86 Titan 17208 | -6/Garrison | Destroyed B-90 Cyclops 17362 | -6/Garrison | Triggered checkpoint 17425 | -6/Garrison | Garrison Relay disabled 17530 | -6/Garrison | Discovered new exit (range 3) 17551 | -6/Garrison | Expanded RIF knowledge: Robot Detection 17750 | -6/Garrison | Discovered new exit (range 13) 17828 | -6/Garrison | Entered Factory 17828 | -5/Factory | Accompanied by 1 ally 17828 | -5/Factory | Evolved 2 slots: Utility x2 17976 | -5/Factory | Identified exit to Upper Caves 18314 | -5/Factory | Identified exit to Garrison 18341 | -5/Factory | Entered Garrison 18341 | -5/Garrison | Accompanied by 2 allies 18348 | -5/Garrison | Found embedded Infiltrators 18387 | -5/Garrison | Triggered checkpoint 18443 | -5/Garrison | Garrison Relay disabled 18534 | -5/Garrison | Triggered checkpoint 18549 | -5/Garrison | Triggered checkpoint 18550 | -5/Garrison | Spotted B-75 Beast 18600 | -5/Garrison | Destroyed B-75 Beast 18605 | -5/Garrison | Lost 4 allies 18674 | -5/Garrison | Triggered checkpoint 18755 | -5/Garrison | Triggered checkpoint 18967 | -5/Garrison | Discovered new exit (range 8) 19043 | -5/Garrison | Garrison Relay disabled 19065 | -5/Garrison | Triggered checkpoint 19197 | -5/Garrison | Triggered checkpoint 19265 | -5/Garrison | Garrison Relay disabled 19347 | -5/Garrison | Discovered new exit (range 13) 19647 | -5/Garrison | Discovered new exit (range 11) 19675 | -5/Garrison | Triggered checkpoint 19769 | -5/Garrison | Expanded RIF knowledge: Structural Interface 19781 | -5/Garrison | Garrison Relay disabled 20133 | -5/Garrison | Entered Factory 20133 | -4/Factory | Accompanied by 1 ally 20133 | -4/Factory | Evolved 2 slots: Utility x2 20532 | -4/Factory | Fabricated M-13 Machinist? 20792 | -4/Factory | Identified exit to Garrison 20792 | -4/Factory | Entered Garrison 20900 | -4/Garrison | Garrison Relay disabled 20908 | -4/Garrison | Triggered checkpoint 20974 | -4/Garrison | Triggered checkpoint 20976 | -4/Garrison | Triggered checkpoint 21008 | -4/Garrison | Spotted B-86 Titan 21065 | -4/Garrison | Destroyed B-86 Titan 21097 | -4/Garrison | Triggered checkpoint 21160 | -4/Garrison | Triggered checkpoint 21267 | -4/Garrison | Garrison Relay disabled 21308 | -4/Garrison | Discovered new exit (range 10) 21313 | -4/Garrison | Spotted Executioner 21376 | -4/Garrison | Triggered checkpoint 21532 | -4/Garrison | Triggered checkpoint 21543 | -4/Garrison | Discovered new exit (range 12) 21626 | -4/Garrison | Triggered checkpoint 21635 | -4/Garrison | Discovered new exit (range 63) 21635 | -4/Garrison | Discovered new exit (range 42) 21635 | -4/Garrison | Discovered new exit (range 32) 21635 | -4/Garrison | Discovered new exit (range 72) 21649 | -4/Garrison | Garrison Relay disabled 21955 | -4/Garrison | Lost 3 allies 22396 | -4/Garrison | Build established: Botlord-Mutant 22405 | -4/Garrison | Found embedded Infiltrators 22425 | -4/Garrison | Garrison Relay disabled 22629 | -4/Garrison | Entered Factory 22629 | -4/Factory | Accompanied by 5 allies 22852 | -4/Factory | Repaired Broken Quantum Capacitor 22974 | -4/Factory | Build established: Botlord-Tank 23778 | -4/Factory | Identified exit to Garrison 23858 | -4/Factory | Entered Garrison 23858 | -4/Garrison | Accompanied by 3 allies 23964 | -4/Garrison | Triggered checkpoint 24064 | -4/Garrison | Garrison Relay disabled 24070 | -4/Garrison | Build established: Botlord-Mutant 24082 | -4/Garrison | Found embedded Infiltrators 24083 | -4/Garrison | Triggered checkpoint 24190 | -4/Garrison | Triggered checkpoint 24192 | -4/Garrison | Triggered checkpoint 24208 | -4/Garrison | Triggered checkpoint 24212 | -4/Garrison | Triggered checkpoint 24336 | -4/Garrison | Triggered checkpoint 24358 | -4/Garrison | Rescued a captive Derelict 24360 | -4/Garrison | Rescued a captive Derelict 24399 | -4/Garrison | Garrison Relay disabled 24432 | -4/Garrison | Discovered new exit (range 10) 24472 | -4/Garrison | H-XX Assembler disabled 24487 | -4/Garrison | Build established: Botlord-Tank 24651 | -4/Garrison | Spotted Executioner 24662 | -4/Garrison | Destroyed Executioner 24668 | -4/Garrison | Found Exp. Core Analyzer 24671 | -4/Garrison | Rewired Executioner 24708 | -4/Garrison | Expanded RIF knowledge: Alert ID Control 24724 | -4/Garrison | Discovered new exit (range 11) 24742 | -4/Garrison | Garrison Relay disabled 24991 | -4/Garrison | Garrison Relay disabled 25012 | -4/Garrison | Triggered checkpoint 25074 | -4/Garrison | Discovered new exit (range 2) 25108 | -4/Garrison | Entered Factory 25108 | -4/Factory | Accompanied by 13 allies 25350 | -4/Factory | Unchained authorized (GL-D0S) 25358 | -4/Factory | First assault squad dispatched 25476 | -4/Factory | Lost 3 allies 25547 | -4/Factory | Repaired Arm. Huge Wheel+ 25712 | -4/Factory | Lost 5 allies 25785 | -4/Factory | Lost 6 allies 25787 | -4/Factory | Identified exit to Garrison 25787 | -4/Factory | Entered Garrison 25797 | -4/Garrison | Rewired B-75 Beast 25930 | -4/Garrison | System corruption reached 10% 25940 | -4/Garrison | Triggered checkpoint 25990 | -4/Garrison | Garrison Relay disabled 26129 | -4/Garrison | Spotted B-86 Titan 26130 | -4/Garrison | Triggered checkpoint 26186 | -4/Garrison | Allies destroyed B-86 Titan 26201 | -4/Garrison | Triggered checkpoint 26281 | -4/Garrison | Lost 3 parts (2u1w) 26309 | -4/Garrison | Triggered checkpoint 26338 | -4/Garrison | Discovered new exit (range 13) 26487 | -4/Garrison | Triggered checkpoint 26514 | -4/Garrison | Garrison Relay disabled 26719 | -4/Garrison | Triggered checkpoint 26752 | -4/Garrison | Garrison Relay disabled 26800 | -4/Garrison | Garrison Relay disabled 26959 | -4/Garrison | Triggered checkpoint 27000 | -4/Garrison | Lost 3 allies 27130 | -4/Garrison | Discovered new exit (range 10) 27192 | -4/Garrison | Spotted Striker 27192 | -4/Garrison | Spotted Striker 27215 | -4/Garrison | Allies destroyed Striker 27218 | -4/Garrison | Allies destroyed Striker 27240 | -4/Garrison | Rewired Executioner 27245 | -4/Garrison | Triggered checkpoint 27325 | -4/Garrison | Garrison Relay disabled 27413 | -4/Garrison | Triggered checkpoint 27475 | -4/Garrison | Expanded RIF knowledge: Threat Obfuscation 27499 | -4/Garrison | Triggered checkpoint 27771 | -4/Garrison | Found Relay Coupler [Proto] 27776 | -4/Garrison | Found Relay Coupler [Proto] 27780 | -4/Garrison | Found Relay Coupler [Proto] 27849 | -4/Garrison | Entered Research 27849 | -3/Research | Accompanied by 14 allies 27849 | -3/Research | Evolved 2 slots: Power x2 27982 | -3/Research | Identified exit to Quarantine 28552 | -3/Research | Lost 3 allies 28693 | -3/Research | Discovered new exit (range 11) 28865 | -3/Research | Spotted B-86 Titan 28870 | -3/Research | Allies destroyed B-86 Titan 28919 | -3/Research | Found Quantum Capacitor 29370 | -3/Research | Entered Quarantine 29370 | -3/Quarantine | Accompanied by 9 allies 29394 | -3/Quarantine | Found Hpw. Transdimensional Reconstructor 29401 | -3/Quarantine | Found Transdimensional Reconstructor 29437 | -3/Quarantine | Scanned by Researcher 29647 | -3/Quarantine | Cryocooling Duct disabled 29662 | -3/Quarantine | Ambient heat levels rising (+20) 29662 | -3/Quarantine | Non-combat units ordered to evacuate 29848 | -3/Quarantine | System corruption reached 10% 29955 | -3/Quarantine | Garrison activated, responded to threat 29984 | -3/Quarantine | Spotted Alpha 7 30005 | -3/Quarantine | Destroyed Alpha 7 30018 | -3/Quarantine | Cryocooling Duct disabled 30026 | -3/Quarantine | Cryocooling Duct disabled 30033 | -3/Quarantine | Ambient heat levels rising (+20) 30033 | -3/Quarantine | Combat units ordered to evacuate 30041 | -3/Quarantine | Ambient heat levels rising (+20) 30058 | -3/Quarantine | Lost 5 allies 30070 | -3/Quarantine | Discovered new exit (range 14) 30133 | -3/Quarantine | Quarantine Guard activated 30133 | -3/Quarantine | Spotted Quarantine Guard 30133 | -3/Quarantine | Spotted Quarantine Guard 30133 | -3/Quarantine | Spotted Quarantine Guard 30140 | -3/Quarantine | Destroyed Quarantine Guard 30146 | -3/Quarantine | Destroyed Quarantine Guard 30154 | -3/Quarantine | Destroyed Quarantine Guard 30167 | -3/Quarantine | Spotted Quarantine Guard 30197 | -3/Quarantine | Destroyed Quarantine Guard 30214 | -3/Quarantine | Found Alien Artifact 30286 | -3/Quarantine | Spotted Quarantine Guard 30290 | -3/Quarantine | Spotted Quarantine Guard 30317 | -3/Quarantine | Destroyed Quarantine Guard 30322 | -3/Quarantine | Destroyed Quarantine Guard 30426 | -3/Quarantine | Identified exit to Garrison 30446 | -3/Quarantine | Entered Garrison 30479 | -3/Garrison | Expanded RIF knowledge: Coupler Efficiency 30524 | -3/Garrison | Triggered checkpoint 30560 | -3/Garrison | Garrison Relay disabled 30600 | -3/Garrison | Found embedded Infiltrators 30824 | -3/Garrison | Spotted B-86 Titan 30832 | -3/Garrison | Triggered checkpoint 30836 | -3/Garrison | Triggered checkpoint 30839 | -3/Garrison | Assimilated Titan 8a with formatsys_high 30845 | -3/Garrison | Triggered checkpoint 30901 | -3/Garrison | Lost 10 allies 30916 | -3/Garrison | Triggered checkpoint 31336 | -3/Garrison | Discovered new exit (range 23) 31336 | -3/Garrison | Discovered new exit (range 30) 31336 | -3/Garrison | Discovered new exit (range 70) 31340 | -3/Garrison | Triggered checkpoint 31416 | -3/Garrison | Garrison Relay disabled 31682 | -3/Garrison | Triggered checkpoint 31706 | -3/Garrison | Garrison Relay disabled 31986 | -3/Garrison | Entered Research 31986 | -2/Research | Accompanied by 3 allies 31986 | -2/Research | Evolved 2 slots: Utility x2 32092 | -2/Research | Fabricated M-13 Machinist (x1) 32206 | -2/Research | Garrison activated, responded to threat 32231 | -2/Research | Spotted B-90 Cyclops 32239 | -2/Research | Destroyed B-90 Cyclops 32715 | -2/Research | Build established: Botlord-Gunner 32760 | -2/Research | Lost 5 parts (3u2w) 33558 | -2/Research | Discovered new exit (range 14) 33608 | -2/Research | Identified exit to Access 33608 | -2/Research | P-80 Master assimilated allied Machinist 9b 34125 | -2/Research | Warped through subspace 34153 | -2/Research | Lost 3 allies 34293 | -2/Research | Lost 4 parts (1n2u1w) 34544 | -2/Research | Build established: Botlord-Tank 34832 | -2/Research | Identified exit to Testing 34886 | -2/Research | Spotted B-90 Cyclops 34897 | -2/Research | Destroyed B-90 Cyclops 34992 | -2/Research | Identified exit to Garrison 34992 | -2/Research | Entered Garrison 35073 | -2/Garrison | Spotted B-90 Cyclops 35190 | -2/Garrison | Garrison Relay disabled 35215 | -2/Garrison | Triggered checkpoint 35362 | -2/Garrison | Destroyed B-90 Cyclops 35420 | -2/Garrison | Triggered checkpoint 35426 | -2/Garrison | Triggered checkpoint 35427 | -2/Garrison | Triggered checkpoint 35576 | -2/Garrison | Triggered checkpoint 35760 | -2/Garrison | Discovered exit to Access (range 12) 35788 | -2/Garrison | Garrison Relay disabled 36157 | -2/Garrison | Garrison Relay disabled 36242 | -2/Garrison | Discovered exit to Access (range 15) 36293 | -2/Garrison | Expanded RIF knowledge: Zone Cloak 36561 | -2/Garrison | Garrison Relay disabled 36606 | -2/Garrison | Discovered exit to Access (range 11) 36796 | -2/Garrison | System corruption reached 10% 37033 | -2/Garrison | Entered Access 37033 | -1/Access | Evolved 2 slots: Utility x2 37813 | -1/Access | Found Spectral Analyzer 37835 | -1/Access | Found Exp. Hacking Suite 37916 | -1/Access | Lost 3 parts (1n1u1w) 38107 | -1/Access | Build established: Botlord-Gunner 38168 | -1/Access | System corruption reached 10% 38242 | -1/Access | Lost 18 parts (4p2n7u5w) 38277 | -1/Access | Spotted B-99 Colossus 38278 | -1/Access | Spotted B-99 Colossus 38290 | -1/Access | Core integrity fell below 50% 38303 | -1/Access | Discovered new exit (range 4) 38315 | *** | Escaped! Last Messages --------------- 38285_ Sealed Heavy Doors breached. 38286_ Knocked back. 38286_ Penetrated by Slug. 38286_ Slug penetrates Sealed Heavy Doors. 38286_ Penetrated by Slug. 38286_ Slug penetrates Sealed Heavy Doors. 38288_ Penetrated by Slug. 38288_ Slug penetrates Sealed Heavy Doors. 38289_ B-99 Colossus activates siege mode. 38289_ Penetrated by Slug. 38289_ Slug penetrates Sealed Heavy Doors. 38293_ System corrupted: Substantial component data lost. 38293_ Slug penetrates Sealed Heavy Doors. 38293_ Penetrated by Slug. 38293_ Arm. Heavy Treads destroyed. 38293_ Penetrated by Slug. 38303_ Main Access Shell breached. 38303_ EXIT=FOUND 38309_ ALERT: Potential suspicious activity detected, Q-Series report to Access Zone 8L. Map ----- +----------------------------------------------------+ | ?????????????????????????????# """""" ### | | ?????????????????????????????# """""" # # | | ?????????????????????????????# """""" ##"##### | | ?????????????????????????????# """""" # ##???? | | ?????????????????????????????# "##????? | | ?????????????????????????????# ##?????? | | ?????????????????????????????# #??????? | | ?????????????????????????????# #??????? | | ?????????????????????????????# #??????? | | ?????????????????????????????#######+############# | | ????????????????????############## #??# | | ?????????????? #### | | ?????????????? + """"" | | ???????????????????############### #### """"" | | ?????????????????????????????????######??# """"" | | ?????????????????????????????????????????# """"" | | ?????????????????????????????????????????# """"" | | ?????????????????????????????????????????# """"" | | ?????????????????????????????????????????# | | ????????????????????"###########?######### | | ????????????????????" %%""" # | | ????????????????????" % %% # | | ????????????????????" """""" """" BB "###"+### | | ???????????????????????" " "??" BB Y | | ???????????????????????" "" " "??" % | | ???????????????????????" @" "??" | | ???????????????????????" " "??"BB | | ???????????????????????"""""" "??"BB #"# ## | | ???????????????????????????? "??" ### #? | | ???????????????????????????? "??" #?# #? | | ????????????????????????????###??#########?# +? | | ???????????????????????????????????????????# #? | | ???????????????????????????????????????????# #? | | ???????????????????????????????????????????# #? | | ???????????????????????????????????????????# #? | | ???????????????????????????????????????????# #? | | ???????????????????????????????????????????# #? | | ??????????????????????????????????????????? #? | | ??????????????????????????????????????????? #? | | ??????????????????????????????????????????? #? | | ??????????????????????????????????????????? #? | | ???????????Y??????????????????????????????? #? | | ??????????????????????????????????????????? #? | | ?????????????????????????????????????????? #? | | ?????????????????????????????????????????? ? | | ???????????????????????????????????????????? ? | | ???????????????????????????????????????????? ???? | | ?????????????????????????????????????????????????? | | ?????????????????????????????????????????????????? | | ?????????????????????????????????????????????????? | +----------------------------------------------------+ Best States ------------- Heat Dissipation 136 Coolant Potential 100 Energy Generation 85 Energy Capacity 1100 Matter Stores 300 Matter Capacity 300 Sight Range 24 Terrain Scan Density 10 Base Temperature (-) 200 Armor Coverage 1200 Resistance: TH 15 Utility Shielding 66 Weapon Cycling 25 Evasion (%) 50 Melee Accuracy 8 Core Analysis 8 Recoil Reduction 2 Offensive Hacking 10 Relay Coupler Types 7 Relay Coupler Value 194 Authchip Count 1 Item Schematics ----------------- Electron Diverter | -3/Quarantine | Archive Cld. Antimatter Reactor | -3/Quarantine | Archive Robot Schematics ------------------ M-13 Machinist | -10/Materials | Hacked Fabricated ------------ M-13 Machinist | x1 | -6/Factory | Authchip M-13 Machinist | x1 | -4/Factory | Authchip M-13 Machinist | x1 | -2/Research | Authchip Repaired ---------- Arm. Huge Wheel | 7% | -7/Factory Hrd. Heavy Armor Plating | 51% | -7/Factory Deuterium Engine | 5% | -7/Factory Arm. Huge Wheel | 43% | -7/Factory Quantum Capacitor | 31% | -4/Factory | Broken Arm. Huge Wheel | 52% | -4/Factory Studied --------- Lgt. Treads | -8/Materials | Hacked Hvy. Assault Rifle | -8/Materials | Hacked Datajack | -8/Materials | Hacked Deuterium Engine | -8/Materials | Hacked Missile Launcher | -8/Materials | Hacked Imp. Ion Engine | -8/Materials | Hacked Arm. Treads | -8/Materials | Hacked Arm. Huge Wheel | -4/Factory | Hacked Gatling Laser | -4/Factory | Hacked Hvy. Plasma Cannon | -4/Factory | Hacked Remote Datajack | -4/Factory | Hacked Alien Tech Used ----------------- High-powered Transdimensional Reconstructor Achievements -------------- Hydra Challenges ------------ None Game ------ Seed LinkedPowerScrap Manual? 0 Play Time 04:07:18 Cumulative 807.8 hours Start 2025.11.12 @ 18:28:40 End 2025.11.14 @ 13:00:18 Sessions 29 Manual Loads 0 Difficulty Rogue Special Mode None Game No. 403 Rogue 403 Adventurer 0 Explorer 0 Win Type 0 Total 68 Types 44/5/6/4/1/1/3/2/1/1 Lore% 92 Gallery% 85 Achievement% 68 Wizard Run 0 Options --------- Layout 0 ASCII 0 Keyboard 1 Movement Numpad Keybinds 0 Fullscreen 2 Font 18/SmallcapsGlow Map View 76x50 Zoom Use 0% Tactical HUD 1 Map Filters NONE Filters NONE Steam 1 RUN: 38251dd2-d7b5-4121-9cf1-2f4ff7d1d1c0